Workbook

Sheet Cover Page
D1: Add company logo
N2: Version 22.2
B8: Add photo
N13: Notes:
N14: This template may require adjustments by individual operators to meet specific reporting requirements as defined in the site Permit(s)
B29: Annual Performance Report 2022
B31: Permit EPR/NP3638ZS
B33: Peterborough Energy Recovery Facility
B37: Viridor Peterborough Limited.
B39: Year: | C39: 2022
B41: Address: | C41: Fourth Drove, Peterborough, PE1 5UR
B43: Tel: | C43: 01733 465284
B45: Email: | C45: kdjones@viridor.co.uk
B47: Prepared by: | C47: K Jones | F47: Position: | G47: EHS Manager
B49: Approved by: | C49: A Beaumont | F49: Position: | G49: Plant Manager
B51: Version:
B53: Issue Date: | C53: 2023-01-01

Sheet Contents
A1: =+'Cover Page'!$B$29 -> Annual Performance Report 2022 | E1: =+'Cover Page'!$B$33 -> Peterborough Energy Recovery Facility
A3: Contents | K3: Notes:
A4: Section | B4: Subject | H4: Page | K4: Section references and Page nos. to be inserted
B5: Facility Information | H5: 3 | K5: Sections and Subjects may require adjustment by individual operators to meet specific reporting requirements as defined in the sites Permit(s)
B6: Operational Summary | H6: 4 - 5.
B7: Operational Data | H7: 6
B8: Performance Form 1 | H8: 7 - 8.
B9: Energy Form 1 | H9: 9
B10: Permit Compliance | H10: 10 - 11.
B11: Improvements | H11: 12
B12: Public Liasion | H12: 13
B13: Residue Quality - Optional | H13: 14
B14: Carbon Dioxide Emissions | H14: 15
B15: Emissions to Water | H15: 16
B16: Emissions to Air (periodically monitored) | H16: 17
B17: Emissions to Air (continuously monitored) | H17: 18
B18: Hydrogen Chloride emissions | H18: 19
B19: Sulphur Dioxdie emsissions | H19: 20
B20: Oxides of Notrigen emissions | H20: 21
B21: Total Organic Carbon emissions | H21: 22
B22: Particulate Matter emissions | H22: 23
B23: Carbon Monoxide emissions | H23: 24
B24: Ammonia emissions | H24: 25
A27: Version Control
A28: Section | B28: Information | H28: Date
A35: Distribution
A36: Copy | B36: Name, Role | H36: No.
A45: This report is required under the Industrial Emissions Directive’s Article 55(2) requirements on reporting and public information on waste incineration plants and co-incineration plants, which require the operator to produce an annual report on the functioning and monitoring of the plant and make it available to the public.

Sheet Facility Info
A1: =+'Cover Page'!$B$29 -> Annual Performance Report 2022 | E1: =+'Cover Page'!$B$33 -> Peterborough Energy Recovery Facility
A3: Plant Description and Design | K3: Notes:
A5: Peterborough Energy from Waste (EfW) facility is located on the eastern side of Peterborough and occupies an area of 4.5 hectares within the Fengate Industrial Estate, approximately 2.5km south-east of the city centre. The ERF enables the city of Peterborough and area to divert about 85,000 tonnes of residual waste from landfill each year. The facility is a single line plant which has a capacity for 85,000 tonnes per year and generates electricity (on average 8.5-8.8MWh) to be used internally and exported to the National Grid. The facility design and layout of the steam turbine allows for potential heat export to local users, a small district heating scheme was commissioned in March 2017 serving Dodson House (next door building owned by Peterborough City Council) although this is currently dormant. Viridor Energy Ltd are contracted by Viridor Peterborough Ltd to operate and maintain the plant on their behalf and that of Peterborough City Council. | K5: Include summary of plant design, design capacity, no. of combustion lines, electrical and heat capacity and any other general information that descibes the facility, its location and purpose
A20: Summary of Operational Processes and Procedures
A22: Incoming refuse collection vehicles and bulk transport vehicles enter the site and proceed to the incoming weighbridge. After weighing in, the vehicles continue to the enclosed reception hall where they will discharge their load into the waste storage bunker. Vehicle loads are inspected randomly in the Tipping Hall to confirm the nature of incoming waste. Once vehicles have deposited their waste they leave the site via a second weighbridge. Potential emissions of odour and dust from the tipping hall and refuse bunkers are controlled by forced draught fans located above the refuse bunkers. These draw air from the bunker hall and reception area into the furnace to feed the combustion process, creating a slight negative pressure. A mist odour supression system complements this. The waste combustion takes place on a Volund Dynagrate the heat generated being used to create superheated steam which is used to drive the steam turbine and generate electricity. Heat from turbine bleeds can be used for combined heat and power systems and is also used for pre-heating of combustion air and operation of the deaerator to maximise efficiency. Condensing of the steam takes place via air cooled condensing system and the condensate cycles back around in a closed system (other than necessary top up). Emission control is via injection of ammonia into the furnace for NOx control via SNCR technology. At the end of the boiler and gas path lime and activated carbon are added to remove acidic gases, dioxins, furans and heavy metals before this is all filtered by a bag filter system which removes the lime and carbon added and particulates from the combustion process producing APCr. Emissions are measured continuously in stack and by extractive stack measurements as required by the environmental permit. Residues from the process, IBA and APCr are both sent to specialist reprocessing sites. IBA has metals removed for recyling and is reprocessed into IBAA (Incinerator Bottom Ash Aggregate). The APCr is sent to OCO Technology (formally Carbon8) who use accelerated cabonation technology to produce a carbon negative aggregate material which encapsulates the absorbed substances from the APCr. Maintenance is controlled by a CMMS system and consists of planned preventative maintenance (ppm), derived from both experience of the plant and OEM requirements, and reactive maintenance. An annual shutdown period happens each year during which maintenance and statutory inspections are carried out. The plant operates a document control system meeting the requirements of the Viridor document management system and ISO 9001, 14001, 45001 and 50001. | K22: Include summary of key processes and procedures such as (but not limited to); waste reception, control rooms, grate, bed and bolier, energy & heat generation, cooling systems, residue management, emission controls, health and safety systems, maintenance

Sheet Operational Data
A1: =+'Cover Page'!$B$29 -> Annual Performance Report 2022 | E1: =+'Cover Page'!$B$33 -> Peterborough Energy Recovery Facility
A3: Operational Data | K3: Notes:
A4: Plant Size | B4: 85000 | D4: tonnes pa | E4: 28 | F4: MWth | G4: 9 | H4: MWe | K4: * - RDF to include SRF
A5: No. of combustion lines | B5: 1 | D5: No. of Turbines: | F5: 1 | K5: ** - CHP plants only
K6: 2020 updates include; heat in MWh, water in Litres, NCV in MJ/kg
A7: Waste types received | B7: Unit | C7: Q1 | D7: Q2 | E7: Q3 | F7: Q4 | G7: Year Total | H7: %
A8: Household / Local Authority | B8: tonnes | C8: 15698.27 | D8: 15778.31 | E8: 13369.97 | F8: 15578.72 | G8: =SUM(C8:F8) -> 60425.27 | H8: =IF(G8>0,G8/$G$18,"-") -> 0.6644603127 | K8: Availabiity Definition: 'the availability of a line is to be calculated by the number of hours the line reported Continuously Monitored emission levels to the Regulator through the calendar year divided by the total number of hours in that year. The overall plant availability is calculated as the Mean of all lines in the plant. For clarity this includes periods of Other Than Normal Operating Conditions (OTNOC) and abnormal operation.' Rationale: The primary function of an Energy from Waste facility is the disposal of waste. It follows therefore that the availability of a plant is determined by the period of time a facility spends undertaking this activity.
A9: Commercial & Industrial | C9: 7715.36 | D9: 5224.1 | E9: 4003.6 | F9: 4963.41 | G9: =SUM(C9:F9) -> 21906.47 | H9: 0.2408922609
A10: Hazardous | G10: 0 | H10: -
A11: Clinical 18 01 04 | C11: 1917.34 | D11: 1984.54 | E11: 2112.66 | F11: 1847.96 | G11: 7862.5 | H11: 0.08645917857
A12: Waste wood (biomass) | G12: 0 | H12: -
A13: Refuse Derived Fuel * - H'hold/LA | G13: =SUM(C13:F13) -> 0 | H13: -
A14: Refuse Derived Fuel * - C&I | G14: 0 | H14: -
A15: lft 18 01 07 | C15: 0.2 | D15: 0 | E15: 0 | F15: 0 | G15: 0.2 | H15: 2.199279582e-06
A16: street cleaning 20 03 03 | C16: 0 | D16: 356.67 | E16: 197.19 | F16: 190.57 | G16: 744.43
A17: Other [Please specify] | G17: 0
A18: Total waste received | C18: =SUM(C8:C17) -> 25331.17 | D18: =SUM(D8:D17) -> 23343.62 | E18: =SUM(E8:E17) -> 19683.42 | F18: =SUM(F8:F17) -> 22580.66 | G18: =SUM(G8:G17) -> 90938.87 | H18: 1
A19: Rejected Waste | G19: =SUM(C19:F19) -> 0 | H19: =IF(G19>0,G19/$G$18,"-") -> -
A20: Unprocessed waste transferred out | G20: =SUM(C20:F20) -> 0 | H20: =IF(G20>0,G20/$G$18,"-") -> -
A21: Total waste combusted | C21: =C18-SUM(C19:C20) -> 25331.17 | D21: =D18-SUM(D19:D20) -> 23343.62 | E21: 19683.42 | F21: 22580.66 | G21: =SUM(C21:F21) -> 90938.87 | H21: =IF(G21>0,G21/$G$18,"-") -> 1
A23: Energy Useage / Export | B23: Unit | C23: Q1 | D23: Q2 | E23: Q3 | F23: Q4 | G23: Year Total | H23: KWh/te | K23: NOTE:- clinical line 18 01 04 is non-haz offensive waste
A24: Power Generated | B24: MWh | C24: 16567 | D24: 15580 | E24: 12683 | F24: 15407.66 | G24: =SUM(C24:F24) -> 60237.66 | H24: =IF(G24>0,G24*1000/$G$21,"-") -> 662.3972785 | K24: Approval given for acccepting 18 01 07 under RPS C23
A25: Power Exported | C25: 14514 | D25: 13552 | E25: 11028 | F25: 13612.11 | G25: =SUM(C25:F25) -> 52706.11 | H25: =IF(G25>0,G25*1000/$G$21,"-") -> 579.5773578
A26: Power Used on site | C26: 2054 | D26: 2028 | E26: 1655 | F26: 1795.55 | G26: =SUM(C26:F26) -> 7532.55 | H26: =IF(G26>0,G26*1000/$G$21,"-") -> 82.83091708
A27: Power Imported | C27: 6.39 | D27: 107.78 | E27: 251 | F27: 67.14 | G27: 432.31 | H27: =IF(G27>0,G27*1000/$G$21,"-") -> 4.75385278
A28: Parasitic Load | B28: % | C28: =IF(C24>0,1-C25/(C24+C27),"-") -> 0.124258827 | D28: =IF(D24>0,1-D25/(D24+D27),"-") -> 0.1361429087 | E28: =IF(E24>0,1-E25/(E24+E27),"-") -> 0.147363538 | F28: =IF(F24>0,1-F25/(F24+F27),"-") -> 0.1203692455 | G28: =IF(G24>0,1-G25/(G24+G27),"-") -> 0.1312652701 | H28: 0.001443445142
A29: Thermal Energy Produced ** | B29: MWh | G29: =SUM(C29:F29) -> 0 | H29: =IF(G29>0,G29*1000/$G$21,"-") -> -
A30: Thermal Energy Exported ** | G30: 0 | H30: =IF(G30>0,G30*1000/$G$21,"-") -> -
A31: R1 value (if applicable) | F31: 0.8 | G31: operational
A33: Waste Disposal & Recovery | B33: Unit | C33: Q1 | D33: Q2 | E33: Q3 | F33: Q4 | G33: Year Total | H33: % inputs
A34: 19 01 07* APC Residues - produced | B34: tonnes | C34: 618.3 | D34: 515.12 | E34: 377.67 | F34: 423.56 | G34: =SUM(C34:F34) -> 1934.65 | H34: =IF(G34>0,G34/$G$21,"-") -> 0.02127418122
A35: 19 01 12 IBA - produced | C35: 5328.73 | D35: 5270.12 | E35: 4296.58 | F35: 4645.7 | G35: 19541.13 | H35: =IF(G35>0,G35/$G$21,"-") -> 0.2148820411
A36: 20 01 40 Metals recycling | C36: 6.04 | D36: 0 | E36: 0 | F36: 0 | G36: =SUM(C36:F36) -> 6.04 | H36: 6.641824338e-05
A37: 19 12 02 Ferrous metals | C37: 0 | D37: 0 | E37: 49.62 | F37: 0 | G37: =SUM(C37:F37) -> 49.62 | H37: 0.0005456412643
A38: 16 06 01 * Lead acid batteries | C38: 0 | D38: 0.25 | E38: 0 | F38: 0 | G38: 0.25 | H38: 2.749099477e-06
A39: 13 01 11* Synthetic hydraulic oil | C39: 0 | D39: 0 | E39: 0 | F39: 12.5 | G39: 12.5 | H39: 0.0001374549739
A40: 13 02 05* mineral based engine, gear & lubricating oils | C40: 0 | D40: 0.65 | E40: 0 | F40: 0 | G40: 0.65 | H40: 7.147658641e-06
A41: 13 02 06* synthetic engine, gear & lubricating oils | C41: 0 | D41: 0 | E41: 0.8 | F41: 0 | G41: 0.8 | H41: 8.797118328e-06 | J41: =SUM(G34,G38,G39,G40,G41,G43,G44,G46) -> 1949.229
A42: 20 03 01 Mixed municiple waste | C42: 0 | D42: 0 | E42: 1.92 | F42: 0 | G42: 1.92 | H42: 2.111308399e-05 | J42: =SUM(G35,G36,G37,G42,G45) -> 19599.31
A43: 20 01 35* IT & telecom equip containing POP's | C43: 0 | D43: 0 | E43: 0 | F43: 0.319 | G43: 0.319 | H43: 3.507850933e-06
A44: 20 01 23* Domestic refridgeration | C44: 0 | D44: 0 | E44: 0 | F44: 0.05 | G44: 0.05 | H44: 5.498198955e-07 | J44: =SUM(J41:J42) -> 21548.539
A45: 15 01 06 mixed municipal recyclate | C45: 0 | D45: 0 | E45: 0 | F45: 0.6 | G45: =SUM(C45:F45) -> 0.6 | H45: 6.597838746e-06
A46: 20 01 21* Fluorescent tubes | C46: 0 | D46: 0.01 | E46: 0 | F46: 0 | G46: 0.01 | H46: 1.099639791e-07
A48: Raw Material Usage | B48: Unit | C48: Q1 | D48: Q2 | E48: Q3 | F48: Q4 | G48: Year Total | H48: kg or Ltr /te
A49: Mains Water | B49: ltrs | C49: 11004000 | D49: 13089000 | E49: 9839000 | F49: 10017000 | G49: =SUM(C49:F49) -> 43949000 | H49: =IF(G49>0,G49/$G$21,"-") -> 483.2806917
A50: other water | B50: litres | C50: 0 | D50: 0 | E50: 0 | F50: 0
A51: Ammonia | B51: litres | C51: 56725 | D51: 60892 | E51: 57471.2 | F51: 60432.8 | G51: 235521 | H51: =IF(G51>0,G51/$G$21,"-") -> 2.589882632 | K51: kgs ammonia calculated from volume using density ammonia soution = .911
A52: Activated Carbon | B52: kgs | C52: 8264 | D52: 8282 | E52: 5910 | F52: 8843 | G52: 31299 | H52: 0.3441762582
A53: Hydrated lime | B53: kgs | C53: 386515 | D53: 271710 | E53: 208066 | F53: 194030 | G53: 1060321 | H53: 11.65971163
A54: Fuel oil | B54: ltrs | C54: 2988 | D54: 32991 | E54: 94771.4 | F54: 79676.8 | G54: 210427.2 | H54: 2.313941222
A55: Gas | B55: cf | C55: 0 | D55: 0 | E55: 0 | F55: 0 | G55: 0
A56: Other | C56: 0 | D56: 0 | E56: 0 | F56: 0 | G56: 0
A59: Summary | B59: Line/Unit | C59: Q1 | D59: Q2 | E59: Q3 | F59: Q4 | G59: Year Total | J59: Hrs in year
A60: Overall Availability, mean avg. of all lines, hrs | B60: 1 | C60: 2160 | D60: 2063 | E60: 1787 | F60: 2117.5 | G60: =SUM(C60:F60) -> 8127.5 | H60: =G60/J60 -> 0.9277968037 | J60: =24*365 -> 8760
A61: Hours of turbine operations, hrs | B61: 1 | C61: 2152 | D61: 1991 | E61: 1654 | F61: 2092 | G61: =SUM(C61:F61) -> 7889 | H61: =G61/J60 -> 0.9005707763
A62: Hours of heat / steam export | G62: 0 | H62: =IF(B62>0,#REF!/#REF!,"n/a") -> n/a
A63: Net Calorific Value of waste | B63: MJ/kg | C63: 9.08 | D63: 9.28 | E63: 9.91 | F63: 8.58 | H63: =AVERAGE(C63:F63) -> 9.2125
A64: Abnormal Events | B64: qty. | C64: 0 | D64: 0 | E64: 0 | F64: 0 | G64: 0 | H64: =IF(G64>0,"yes","no") -> no
A65: Abnormal operation | B65: hours | G65: 0 | H65: =+(G65)/J60 -> 0
A66: Permit Breaches | B66: qty. | F66: 1 | G66: 1 | H66: =IF(G66>0,"yes","no") -> yes

Sheet Operational Summary
A1: =+'Cover Page'!$B$29 -> Annual Performance Report 2022 | E1: =+'Cover Page'!$B$33 -> Peterborough Energy Recovery Facility
A3: Summary of Plant Operations and Maintenance during the reporting year | K3: Notes:
A5: The plant operated for 8128 hours for the year of 2022 with an availability of 92.78% leading to the processing of 90,938 tonnes of waste. The turbine operated for 7889 hours with an availability of 90%. The planned annual Outage took place in July for 16 days with routine maintenance and defect rectification conducted. This included significant work in the boiler replacing tubes and refractory, and a full overhaul of the IBA conveyors. | K5: Include summary of key operational and/or mainteanance activity undertaken in the year, such as any major component upgrades and/or replacements
A29: Summary of Residue Handling for the reporting year
A31: They remove and recycle the ferrous and non-ferrous metals and then create IBAA (Incinerator Bottom Ash Aggregate) from the remaining material. Their Aggregates team then utilise this in various construction and highways projects. APCr is collected by direct transfer from the on site silo into transport tanker by Grundons and goes to the O.C.O Technology Ltd (formally Carbon8) site at Brandon (EPR/JP3332FK) (unless not possible due to operational issues at OCO in which case it is directed to one of their other plants) where it is taken through their accelerated carbonation technology. These carbonated wastes are blended with binders and fillers and pellitised to form an aggregate. | K31: Include in here a summary of residue handling regimes and destinations

Sheet Perf. Form 1
A1: =+'Cover Page'!C39 -> 2022 | B1: Annual Reporting Performance Form 1
A3: =+'Cover Page'!B31 -> Permit EPR/NP3638ZS | F3: Operator: | G3: =+'Cover Page'!$B$33 -> Peterborough Energy Recovery Facility
A4: Facility: | B4: =+'Cover Page'!B33:I33 -> Peterborough Energy Recovery Facility | F4: Form: | G4: Performance 1
A6: Reporting Period from: | D6: 2022-01-01 | F6: to: | G6: 2022-12-31
A8: =+A1 -> 2022 | B8: Annual Reporting of Waste Disposal and Recovery
A9: Waste Description | C9: Disposal Route(s) | E9: Disposal Tonnes | G9: Recovery Tonnes | I9: % / tonne of waste incinerated
A10: 1) Hazardous Wastes
A11: 19 01 07 APC Residues | C11: OCO Tecnology | G11: ='Operational Data'!G34 -> 1934.65 | I11: =IF((E11+G11)>0,(E11+G11)/'Operational Data'!$G$21, "-") -> 0.02127418122
A12: 16 06 01 lead acid batteries | C12: LWOL | G12: ='Operational Data'!G38 -> 0.25 | I12: =IF((E12+G12)>0,(E12+G12)/'Operational Data'!$G$21, "-") -> 2.749099477e-06
A13: 20 12 21 Fluorescent tubes | C13: LWOL | G13: ='Operational Data'!G46 -> 0.01 | I13: =IF((E13+G13)>0,(E13+G13)/'Operational Data'!$G$21, "-") -> 1.099639791e-07
A14: 13 02 06 synthetic engine, gear & lubricating oils | C14: LWOL | G14: ='Operational Data'!G41 -> 0.8 | I14: =IF((E14+G14)>0,(E14+G14)/'Operational Data'!$G$21, "-") -> 8.797118328e-06
A15: 20 01 35 IT & telecom equip containing POP's | C15: Blackmore Ricotech | G15: ='Operational Data'!G43 -> 0.319 | I15: =IF((E15+G15)>0,(E15+G15)/'Operational Data'!$G$21, "-") -> 3.507850933e-06
A16: 13 01 11 Synthetic hydraulic oil | C16: Augean Treament | G16: ='Operational Data'!G39 -> 12.5 | I16: =IF((E16+G16)>0,(E16+G16)/'Operational Data'!$G$21, "-") -> 0.0001374549739
A17: 20 01 23 equipment containing CFC's (fridge) | C17: LWOL | G17: ='Operational Data'!G44 -> 0.05 | I17: =IF((E17+G17)>0,(E17+G17)/'Operational Data'!$G$21, "-") -> 5.498198955e-07
A18: 13 02 05* mineral based engine oil | C18: LWOL | G18: ='Operational Data'!G40 -> 0.65 | I18: =IF((E18+G18)>0,(E18+G18)/'Operational Data'!$G$21, "-") -> 7.147658641e-06
A19: Total Hazardous Waste | E19: =SUM(E11:F14) -> 0 | G19: =SUM(G11:H18) -> 1949.229 | I19: =IF((E19+G19)>0,(E19+G19)/'Operational Data'!$G$21, "-") -> 0.0214344977
A21: 2) Non-Hazardous Wastes
A22: 19 01 12 IBA | G22: ='Operational Data'!G35 -> 19541.13 | I22: =IF((E22+G22)>0,(E22+G22)/'Operational Data'!$G$21, "-") -> 0.2148820411
A23: 20 01 40 recycling Metal | G23: ='Operational Data'!G36 -> 6.04 | I23: =IF((E23+G23)>0,(E23+G23)/'Operational Data'!$G$21, "-") -> 6.641824338e-05
A24: 19 12 02 ferrous metals | G24: ='Operational Data'!G37 -> 49.62 | I24: =IF((E24+G24)>0,(E24+G24)/'Operational Data'!$G$21, "-") -> 0.0005456412643
A25: 20 03 01 Mixed municipal | G25: ='Operational Data'!G42 -> 1.92 | I25: =IF((E25+G25)>0,(E25+G25)/'Operational Data'!$G$21, "-") -> 2.111308399e-05
A26: 15 01 06 Mixed municipal recyclate | G26: ='Operational Data'!G45 -> 0.6 | I26: =IF((E26+G26)>0,(E26+G26)/'Operational Data'!$G$21, "-") -> 6.597838746e-06
A27: Total Non-Hazardous Waste | E27: =SUM(E22:F26) -> 0 | G27: =SUM(G22:H26) -> 19599.31 | I27: =IF((E27+G27)>0,(E27+G27)/'Operational Data'!$G$21, "-") -> 0.2155218115
A28: TOTAL WASTE | E28: =+E27+E19 -> 0 | G28: =SUM(G19,G27) -> 21548.539 | I28: =IF((E28+G28)>0,(E28+G28)/'Operational Data'!$G$21, "-") -> 0.2369563092
A30: Operator’s comments :
A31: All IBA produced on site (including the metal content) is reprocessed by Johnsons Aggregates who recycle the ferrous and non-ferrous metals and create IBAA (Incinerator Bottom Ash Aggregate) from the remaining material. APCr is taken through OCO Technologies accelerated carbonation technology. These carbonated wastes are blended with binders and fillers and pellitised to form an aggregate. Other waste metal e.g. from maintenance is removed by Sims Metals. Wastes such as other wastes, absorbants, lead batteries and spent activated carbon are from maintenance activities during the annual outage.
A35: =+A1 -> 2022 | B35: Annual Reporting of Water and Other Raw Material Usage
A36: Raw Material | E36: Usage | G36: Unit | H36: Specific Useage | J36: Unit
A37: Mains Water | E37: =+'Operational Data'!G49 -> 43949000 | G37: m3 | H37: =IF(E37>0,E37/'Operational Data'!$G$21,"-") -> 483.2806917 | J37: m3/te
A38: Total Water | E38: =+'Operational Data'!G50 -> 0 | G38: m3 | H38: =IF(E38>0,E38/'Operational Data'!$G$21,"-") -> - | J38: m3/te
A39: Ammonia | E39: =+'Operational Data'!G51 -> 235521 | G39: kg | H39: =IF(E39>0,E39/'Operational Data'!$G$21,"-") -> 2.589882632 | J39: kg/te
A40: Activated Carbon | E40: =+'Operational Data'!G52 -> 31299 | G40: kg | H40: =IF(E40>0,E40/'Operational Data'!$G$21,"-") -> 0.3441762582 | J40: kg/te
A41: Lime / hydrated lime / Sodium Bicarb. | E41: =+'Operational Data'!G53 -> 1060321 | G41: kg | H41: =IF(E41>0,E41/'Operational Data'!$G$21,"-") -> 11.65971163 | J41: kg/te
A42: Fuel Oil | E42: =+'Operational Data'!G54 -> 210427.2
A44: Operator’s comments :
A48: =+A35 -> 2022 | B48: Annual Reporting of other performance indicators
A49: Parameter | C49: Results by Line
C50: A1 | D50: A2 | E50: A3 | F50: A4 | G50: A5 | I50: Turbine 1 | J50: Turbine 2
A51: Operating hours for the year, hours | C51: ='Operational Data'!G60 -> 8127.5 | I51: ='Operational Data'!G61 -> 7889
A52: Number of periods of abnormal operation, qty. | C52: ='Operational Data'!G64 -> 0 | I52: ='Operational Data'!G62 -> 0
A53: Cumulative hours of abnormal operation for this year, hours | C53: ='Operational Data'!G65 -> 0 | I53: ='Operational Data'!G65 -> 0
A55: Operator’s comments :
A59: Signed: | B59: KDJones | G59: Date: | H59: 2023-01-24

Sheet Energy Form 1
A1: =+'Cover Page'!C39 -> 2022 | B1: Annual Reporting of Energy Usage/Export
A3: =+'Cover Page'!B31 -> Permit EPR/NP3638ZS | F3: Operator: | G3: =+'Cover Page'!$B$33 -> Peterborough Energy Recovery Facility
A5: Facility: | B5: =+'Cover Page'!B33:I33 -> Peterborough Energy Recovery Facility | F5: Form: | G5: Energy 1
A7: Reporting Period from: | D7: =+'Perf. Form 1'!D6:E6 -> 2022-01-01 | F7: to: | G7: =+'Perf. Form 1'!G6:H6 -> 2022-12-31
A9: Energy Source | D9: Energy Usage | F9: Unit | G9: Specific Useage (KWh/tonne incinerated
A10: Electricity Produced | D10: =+'Operational Data'!G24 -> 60237.66 | F10: MWh | G10: =+'Operational Data'!H24 -> 662.3972785
A11: Electricity Imported | D11: =+'Operational Data'!G27 -> 432.31 | F11: MWh | G11: =+'Operational Data'!H27 -> 4.75385278
A12: Electricity Exported | D12: =+'Operational Data'!G25 -> 52706.11 | F12: MWh | G12: =+'Operational Data'!H25 -> 579.5773578
A13: Gas Oil | D13: =('Operational Data'!G54*0.85)/1000 -> 178.86312 | F13: tonnes
A14: Steam/hot water exported | D14: =+'Operational Data'!G30 -> 0 | F14: GWh | G14: n/a
A18: Operator’s comments :
A29: Signed: | B29: KDJones | G29: Date: | H29: 2023-01-24

Sheet Permit Compliance
A1: =+'Cover Page'!$B$29 -> Annual Performance Report 2022 | E1: =+'Cover Page'!$B$33 -> Peterborough Energy Recovery Facility
A3: Summary of Permit Compliance
A5: Compliance with permit limits for continuously monitored pollutants
A7: The plant met its emission limits as shown in the table below:
A8: Substance | C8: Percentage time compliant during operation | L8: Notes:
C9: Half-hourly limit | F9: Daily limit | L9: Report to 2 decimal places, i.e. xx.xx% Please provide a brief summary of each notification or non-compliance in the table (rather than just referring to notifications that were sent to the Regulator).
A10: Particulates | C10: 1 | F10: 1
A11: Oxides of nitrogen | C11: 1 | F11: 1
A12: Sulphur dioxide | C12: 1 | F12: 1
A13: Carbon monoxide | C13: 100.00 % or 95% of 10-min averages | F13: 1
A14: Total organic carbon | C14: 1 | F14: 1
A15: Hydrogen chloride | C15: 1 | F15: 1
A16: Hydrogen fluoride | C16: 1 | F16: 1
C17: xx.xx % | F17: xx.xx %
A19: Summary of any notifications or non-compliances under the permit
A20: Date | B20: Summary of notification or non-compliance [including Line/Reference] | E20: Reason | H20: Measures taken to prevent reoccurrence
A21: 2022-11-24 | B21: Notification 5, part b.TOC analysis of Incinerator Bottom Ash (IBC) permitted level of 3% exceeded by 0.5% | E21: Absolute reason unconfirmed but possible cause- explosion on grate, leading to rapid reduction in O2, affecting burn of material and possible unburnt matterial being processsed. | H21: Immediate response was manual input of secondary air to obtain maximum burn environment. Extended response is continued waste reception checks, liaising with waste/fuel providers of waste material contents.
A27: Summary of any complaints received and actions to taken to resolve them.
A28: Date | B28: Summary of complaint [including Line/Reference] | E28: Reason * | H28: Measures taken to prevent reoccurrence
B29: nil
E34: * including whether substantiated by the operator or the EA

Sheet Improvements
A1: =+'Cover Page'!$B$29 -> Annual Performance Report 2022 | E1: =+'Cover Page'!$B$33 -> Peterborough Energy Recovery Facility
A3: Summary of Plant Improvements
A5: Summary of any efficiency improvements that have been completed within the year.
A16: Summary of any permit improvement conditions that have been completed within the year and the resulting environmental benefits.
A17: None All completed between December 2015 and April 2017 within timeframes required by permit. All accepted by the Agency
A27: Summary of any changes to the plant or operating techniques which required a variation to the permit and a summary of the resulting environmental impact.
A28: Plant MCR increased from 100% to 103%. Application for permit variation submitted 17 Jun 22 for increase in waste input and processing to 106kt. This application is based on the change to 103% MCR and further future increases in MCR, CV redcution and improved availability. EIA completed as part of permit variation submission.
A38: Summary of any other improvements made to the plant or planned to be made and a summary of the resulting environmental benefits.

Sheet Public Liasion
A1: =+'Cover Page'!$B$29 -> Annual Performance Report 2022 | E1: =+'Cover Page'!$B$33 -> Peterborough Energy Recovery Facility
A3: Details of Public & Stakeholder Liasion
A5: Summary of events held during the reporting year.
A6: Date | C6: Description
A7: Bi Monthly | C7: Client liaisons with Peterborough City Council
A9: Planned visits for April and November and as requested. | C9: Heritage open days for general public. Organised school/college tours.
A11: Quarterly | C11: Viridor in Peterborough Meetings for the Viridor in Peterborough community fund - funding local projects based around sustainability, local need, community involvement, value for money and education
C13: We will hold community liaison meetings on request after no attendance by local companies or residents since August 2016.
A16: List of events planned for next year
A17: Date | C17: Description
A29: If you wish to be involved in the public liasion programme, please contact _________________

Sheet CO2 N20
A1: =+'Cover Page'!$B$29 -> Annual Performance Report 2022 | C1: =+'Cover Page'!$B$33 -> Peterborough Energy Recovery Facility
A3: Carbon dioxide emissions and biogenic content of waste inputs | E3: Notes:
A5: Carbon dioxide emissions (all types of plant)
A6: Annual mass of carbon dioxide released | B6: x tonnes | C6: 105709
A7: Annual mass of carbon dioxide released per tonne of waste burned | B7: x tonnes | C7: 1.167
A8: Annual mass of carbon dioxide released per MWh of energy generated | B8: x tonnes | C8: 1.755 | D8: 105709/60,237=1.755
A9: Description of how annual carbon dioxide mass emission has been calculated | B9: Fully calibrated CEM's used to calculate the data. | D9: Where available, data from CO2 CEMS should be used; otherwise, a suitable emissions factor should be used based on the tonnage of waste burned e.g.0.992 tCO2/t waste as per Tolvik report 2021, or other justified emissions factor - refer to adjacent Environment Agency guidance note or updated version for example descriptive text.
A11: Nitrous oxide emissions (only plants which use ammonia or urea to abate NOx emissions)
A12: Total annual mass emissions of nitrous oxide N20 | B12: x tonnes | C12: 0.262
A13: Description of how annual nitrous oxide mass emission has been calculated | B13: Fully calibrated CEM's used to calculate the data | D13: Where available, data from N2O CEMS or periodic monitoring data should be used; otherwise, a suitable emissions factor should be used based on the tonnage of waste burned e.g. 0.0981 kgN20/t waste as per 2021 Pollution Inventory data for plants with urea-based SNCR - refer to adjacent Environment Agency guidance note or updated version for example descriptive text.
A14: Total annual carbon dioxide and nitrous oxide emissions as carbon dioxide equivalent (whereby 1 kg nitrous oxide is equivalent to 298 kg carbon dioxide) | B14: x tonnes CO2e | C14: 105786.9
A16: Biogenic fraction of the waste and biogenic CO2 emissions (only plants burning residual municipal waste, refuse derived fuel or solid recovered fuel)
A17: Yearly average biogenic percentage of the waste by mass | B17: x % | C17: 49.4
A18: Description of how biogenic percentage has been calculated | B18: The method used for determining biomass is the selective dissolution method as defined in BS EN ISO 21644:2021. This method involves treatment of the sample with concentrated sulphuric acid and hydrogen peroxide. Generally, the biomass in the sample will selectively dissolve leaving a non-biomass residue. The original mass of sample and mass of residue are measured. The result is calculated from the mass values and the ash content to give a result in %. | D18: Where available, data from waste sampling should be used; otherwise, an estimated figure with justification can be used, or a figure assumed on the basis of a national average e.g. 2017 WRAP data for residual waste of 51.8% biogenic energy content - refer to adjacent Environment Agency guidance note or updated version for example descriptive text.
A19: Percentage of total carbon dioxide emissions arising from biogenic waste | B19: x % | C19: 45.7
A20: Description of how percentage biogenic carbon dioxide emissions have been calculated | B20: The method used for determining biomass is the selective dissolution method as defined in BS EN ISO 21644:2021. This method involves treatment of the sample with concentrated sulphuric acid and hydrogen peroxide. Generally, the biomass in the sample will selectively dissolve leaving a non-biomass residue. The original mass of sample and mass of residue are measured. The result is calculated from the mass values and the ash content to give a result in %. | D20: Examples include direct measurement via C14 method, BIOMA software or other method based on measured or assumed waste biogenic content - refer to adjacent Environment Agency guidance note or updated version for example descriptive text.
A22: Comments:

Sheet Residue Quality
A1: =+'Cover Page'!$B$29 -> Annual Performance Report 2022 | E1: =+'Cover Page'!$B$33 -> Peterborough Energy Recovery Facility
A3: Residue Quality Monitoring Requirements
A5: Summary of monitoring undertaken and compliance
A6: IBA undergoes quarterly sampling as required by permit condition 3.5.1c and table 3.5 including TOC, dioxins & furans. TOC has a limit of <3%.
A8: 24 samples of IBA are taken each year (including the 4 permit complaince samples) to undergo basic hazard analysis as required by the ESA protocol.
A10: APCr is sampled quarterly as per permit condition 3.5.1c and table 3.5
A13: Commentary on any specific events
A14: Date & Event | C14: Description
A27: Residue Quality Monitoring Results
A28: Parameter (unit) | C28: Limit | D28: Normal Operation
D29: Bottom ash | F29: APC Residues
A30: Loss on Ignition (average %) | C30: <5% | D30: n/a
A31: Total Organic Carbon (average %) | C31: <3% | D31: 1.33
A32: No. of Assessments Undertaken | C32: --- | D32: 4 Permit compliance samples 24 ESA hazard assessment | F32: 4
A33: No. of Hazardous Results | C33: --- | D33: 0
A35: Comments :

Sheet Water
A1: =+'Cover Page'!$B$29 -> Annual Performance Report 2022 | E1: =+'Cover Page'!$B$33 -> Peterborough Energy Recovery Facility
A3: Emissions to Water
A5: Summary of monitoring undertaken and compliance
A6: Samples taken monthly.Penstock remains closed unless otherwise directed. Visible checks undertaken as part of site walks - free of visible oil and grease
A8: Qtrly PPM checks on penstock operation/condition.
A13: Commentary on any specific events
A14: Date & Event | C14: Description
A22: Emissions to Water / Sewer
A23: Parameter | D23: Monitoring Frequency | F23: Limit | G23: Target | H23: Max. | I23: Average

Sheet Air (periodic)
A1: =+'Cover Page'!$B$29 -> Annual Performance Report 2022 | E1: =+'Cover Page'!$B$33 -> Peterborough Energy Recovery Facility
A3: Emissions to Air (periodically monitored)
A5: Summary of monitoring undertaken, standards used and compliance | M5: Notes:
A6: All analysis below completed by permit specified BS EN method other than nitrous oxide which was completed by allowed alternative method M22. | M6: Template may require adjustment for any bespoke monitoring requirements of permit.
A9: Results of emissions to air that are periodically monitored
A10: Substance | C10: Ref. Period | D10: Emission Limit Value | F10: Average | M10: User to add additional tables as necessary, depending on whether quarterly or bi-annual reporting is required for the compliance year
F11: A1 | G11: A2 | H11: A3 | I11: A4 | J11: A5
A12: Hydrogen fluoride | C12: 1 hr | D12: 2 mg/m3 | F12: 0.04 | G12: 0.08
A13: Cd and Th and their compounds | C13: 6-8hrs | D13: 0.05 mg/m3 | F13: 0.003 | G13: 0.002
A14: Hg and its compounds | C14: 6-8hrs | D14: 0.05 mg/m3 | F14: 0.0054 | G14: 0.0014
A15: Sb, As, Pb, Cr, Co, Cu, Mn, Ni, V and their compounds | C15: 6-8hrs | D15: 0.5 mg/m3 | F15: 0.09 | G15: 0.033
A16: Dioxins & Furans (I-TEQ) | C16: 6-8hrs | D16: 0.1 ng/m3 | F16: 0.002 | G16: 0.0016
A17: PCBs (WHO-TEQ Humans / Mammals) | C17: 6-8hrs | D17: None set ng/m3 | F17: 0.0001 | G17: 0.0004
A18: PCBs (WHO-TEQ Fish) | C18: 6-8hrs | D18: None set ng/m3 | F18: 9e-06 | G18: 2e-05
A19: PCBs (WHO-TEQ Birds) | C19: 6-8hrs | D19: None set ng/m3 | F19: 0.0004 | G19: 0.0011
A20: Dioxins & Furans (WHO-TEQ Humans / Mammals) | C20: 6-8hrs | D20: None set ng/m3 | F20: 0.001 - 0.002 | G20: 0.0014 - 0.0017
A21: Dioxins & Furans (WHO-TEQ Fish) | C21: 6-8hrs | D21: None set ng/m3 | F21: 0.001 - 0.002 | G21: 0.0015 - 0.0019
A22: Dioxins & Furans (WHO-TEQ Birds) | C22: 6-8hrs | D22: None set ng/m3 | F22: 0.005 | G22: 0.0026 - 0.0030
A23: Anthanthrene | C23: 6-8hrs | D23: None set µg/m3 | F23: 0.0015 | G23: 0.0014
A24: Benzo(a)anthracene | C24: 6-8hrs | D24: None set µg/m3 | F24: 0 | G24: 0.0014
A25: Benzo(a)pyrene | C25: 6-8hrs | D25: None set µg/m3 | F25: 0 | G25: 0.0014
A26: Benzo(b)fluoranthene | C26: 6-8hrs | D26: None set µg/m3 | F26: 0 | G26: 0
A27: Benzo(b)naptho(2,1-d) thiophene | C27: 6-8hrs | D27: None set µg/m3 | F27: 0 | G27: 0.0014
A28: Benzo(c)phenanthrene | C28: 6-8hrs | D28: None set µg/m3 | F28: 0.0015 | G28: 0.0014
A29: Benzo(ghi)perylene | C29: 6-8hrs | D29: None set µg/m3 | F29: 0.01 | G29: 0
A30: Benzo(k)fluoranthene | C30: 6-8hrs | D30: None set µg/m3 | F30: 0 | G30: 0.0014
A31: Cholanthrene | C31: 6-8hrs | D31: None set µg/m3 | F31: 0.0015 | G31: 0.0014
A32: Chrysene | C32: 6-8hrs | D32: None set µg/m3 | F32: 0.01 | G32: 0
A33: Cyclopenta(cd)pyrene | C33: 6-8hrs | D33: None set µg/m3 | F33: 0 | G33: 0
A34: Dibenzo(ai)pyrene | C34: 6-8hrs | D34: None set µg/m3 | F34: 0.0015 | G34: 0.0014
A35: Dibenzo(ah)anthracene | C35: 6-8hrs | D35: None set µg/m3 | F35: 0.0015 | G35: 0.0014
A36: Fluoranthene | C36: 6-8hrs | D36: None set µg/m3 | F36: 0.08 | G36: 0.05
A37: Indeno(123-cd) pyrene | C37: 6-8hrs | D37: None set µg/m3 | F37: 0 | G37: 0
A38: Naphthalene | C38: 6-8hrs | D38: None set µg/m3 | F38: 0.1 | G38: 0.02
A39: Comments :

Sheet Air (CEMS)
A1: =+'Cover Page'!$B$29 -> Annual Performance Report 2022 | I1: =+'Cover Page'!$B$33 -> Peterborough Energy Recovery Facility
A3: Emissions to Air (continously monitored)
P4: Notes:
A5: Summary of monitoring undertaken, standards used and compliance | P5: Template may require adjustment for any bespoke monitoring requirements of permit
P6: Report to 2 decimal places, i.e. xx.xx%
A11: Results of emissions to air that are continuously monitored (maximum and average values for each line)
A12: Substance | B12: Reference Period | C12: Emission Limit Value | D12: A1 | F12: A2 | H12: A3 | J12: A4 | L12: year
D13: Max. | E13: Avg. | F13: Max. | G13: Avg. | H13: Max. | I13: Avg. | J13: Max. | K13: Avg. | L13: Max. | M13: Avg.
A14: Oxides of nitrogen | B14: Daily mean | C14: 200 mg/m3 | D14: 124.9 | E14: 114.1 | F14: =MAX(NOx!O10:O12) -> 116.4 | G14: =AVERAGE(NOx!N10:N12) -> 115.4 | H14: =MAX(NOx!O13:O15) -> 118.7 | I14: =AVERAGE(NOx!F13:F15) -> 115.6666667 | J14: =MAX(NOx!O16:O18) -> 125.2 | K14: =AVERAGE(NOx!F16:F18) -> 115.4333333 | L14: =NOx!O19 -> 125.2 | M14: =NOx!N19 -> 115.15
B15: ½ hourly mean | C15: 400 mg/m3 | D15: 167.9 | E15: 114.13 | F15: =MAX(NOx!M10:M12) -> 142.3 | G15: =AVERAGE(NOx!L10:L12) -> 115.4333333 | H15: =MAX(NOx!M13:M15) -> 220.8 | I15: =AVERAGE(NOx!L13:L15) -> 115.7 | J15: =MAX(NOx!M16:M18) -> 195.4 | K15: =AVERAGE(NOx!L16:L18) -> 115.3333333 | L15: =NOx!M19 -> 220.8 | M15: =NOx!L19 -> 115.15
A16: Particulates | B16: Daily mean | C16: 10 mg/m3 | D16: 3.2 | E16: 0.87 | F16: =MAX(Particulates!O12:O12) -> 2.7 | G16: =AVERAGE(Particulates!N10:N13) -> 1.525 | H16: =MAX(Particulates!O13:O15) -> 7 | I16: =AVERAGE(Particulates!N13:N15) -> 2.533333333 | J16: =MAX(Particulates!O16:O18) -> 4.2 | K16: =AVERAGE(Particulates!N16:N18) -> 1.366666667 | L16: =Particulates!O19 -> 7 | M16: =Particulates!N19 -> 1.616666667
B17: ½ hourly mean | C17: 30 mg/m3 | D17: 10.1 | E17: 0.93 | F17: =MAX(Particulates!M10:M12) -> 8.7 | G17: =AVERAGE(Particulates!L10:L12) -> 1.733333333 | H17: =MAX(Particulates!M13:M15) -> 18.6 | I17: =AVERAGE(Particulates!L13:L15) -> 2.6 | J17: =MAX(Particulates!M16:M18) -> 10.3 | K17: =AVERAGE(Particulates!L16:L18) -> 1.433333333 | L17: =Particulates!M19 -> 18.6 | M17: =Particulates!L19 -> 1.675
A18: Total Organic Carbon | B18: Daily mean | C18: 10 mg/m3 | D18: =MAX(TOC!O7:O9) -> 2.5 | E18: =AVERAGE(TOC!L7:L9) -> 0.4666666667 | F18: =MAX(TOC!O10:O12) -> 1.1 | G18: =AVERAGE(TOC!L10:L12) -> 0.5333333333 | H18: =MAX(TOC!O13:O15) -> 0.8 | I18: =AVERAGE(TOC!L13:L15) -> 0.5666666667 | J18: =MAX(TOC!O16:O18) -> 0.8 | K18: =AVERAGE(TOC!L16:L19) -> 0.4770833333 | L18: =TOC!O19 -> 2.5 | M18: =TOC!L19 -> 0.5083333333
B19: ½ hourly mean | C19: 20 mg/m3 | D19: =MAX(TOC!M7:M9) -> 7.3 | E19: =AVERAGE(TOC!L7:L9) -> 0.4666666667 | F19: =MAX(TOC!M10:M12) -> 14.7 | G19: =AVERAGE(TOC!L10:L12) -> 0.5333333333 | H19: =MAX(TOC!M13:M15) -> 13.3 | I19: =AVERAGE(TOC!L13:L15) -> 0.5666666667 | J19: =MAX(TOC!M16:M18) -> 14.1 | K19: =AVERAGE(TOC!L16:L18) -> 0.4666666667 | L19: =TOC!M19 -> 14.7 | M19: =TOC!L19 -> 0.5083333333
A20: Hydrogen chloride | B20: Daily mean | C20: 10 mg/m3 | D20: =MAX(HCl!O7:O9) -> 7.9 | E20: =AVERAGE(HCl!N7:N9) -> 6.333333333 | F20: =MAX(HCl!O10:O12) -> 8.1 | G20: =AVERAGE(HCl!N10:N12) -> 6.233333333 | H20: =MAX(HCl!O13:O15) -> 9 | I20: =AVERAGE(HCl!N13:N15) -> 6.4 | J20: =MAX(HCl!O16:O18) -> 7.7 | K20: =AVERAGE(HCl!N16:N18) -> 5.066666667 | L20: =HCl!O19 -> 9 | M20: =HCl!N19 -> 6.008333333
B21: ½ hourly mean | C21: 60 mg/m3 | D21: =MAX(HCl!M7:M9) -> 23.5 | E21: =AVERAGE(HCl!L7:L9) -> 6.333333333 | F21: =MAX(HCl!M10:M12) -> 13.6 | G21: =AVERAGE(HCl!L10:L12) -> 6.233333333 | H21: =MAX(HCl!M13:M15) -> 15.6 | I21: =AVERAGE(HCl!L13:L15) -> 6.366666667 | J21: =MAX(HCl!M16:M18) -> 25.1 | K21: =AVERAGE(HCl!L16:L18) -> 5.133333333 | L21: =HCl!M19 -> 25.1 | M21: =HCl!L19 -> 6.016666667
A22: Sulphur dioxide | B22: Daily mean | C22: 50 mg/m3 | D22: =MAX('SO2'!O7:O9) -> 33.8 | E22: =AVERAGE('SO2'!N7:N9) -> 27.16666667 | F22: =MAX('SO2'!O10:O12) -> 34.2 | G22: =AVERAGE('SO2'!N10:N12) -> 28.83333333 | H22: =MAX('SO2'!O13:O15) -> 34.4 | I22: =AVERAGE('SO2'!N13:N15) -> 24.66666667 | J22: =MAX('SO2'!O16:O18) -> 30.4 | K22: =AVERAGE('SO2'!N16:N18) -> 19.83333333 | L22: ='SO2'!O19 -> 34.4 | M22: ='SO2'!N19 -> 25.125
B23: ½ hourly mean | C23: 200 mg/m3 | D23: =MAX('SO2'!M7:M9) -> 182.5 | E23: =AVERAGE('SO2'!L7:L9) -> 27.23333333 | F23: =MAX('SO2'!M10:M12) -> 99.2 | G23: =AVERAGE('SO2'!L10:L12) -> 28.53333333 | H23: =MAX('SO2'!M13:M15) -> 127.4 | I23: =AVERAGE('SO2'!L13:L15) -> 24.63333333 | J23: =MAX('SO2'!M16:M18) -> 182.3 | K23: =AVERAGE('SO2'!L16:L18) -> 19.86666667 | L23: ='SO2'!M19 -> 182.5 | M23: ='SO2'!L19 -> 25.06666667
A24: Carbon monoxide | B24: Daily mean | C24: 50 mg/m3 | D24: 3.5 | E24: 0.8 | F24: =MAX('CO 95% 10 min'!Q10:Q12) -> 5.8 | G24: =AVERAGE('CO 95% 10 min'!P10:P12) -> 2.366666667 | H24: =MAX('CO 95% 10 min'!Q13:Q15) -> 4.9 | I24: =AVERAGE('CO 95% 10 min'!P13:P15) -> 2.366666667 | J24: =MAX('CO 95% 10 min'!Q16:Q18) -> 10.2 | K24: =AVERAGE('CO 95% 10 min'!P16:P18) -> 2.433333333 | L24: ='CO 95% 10 min'!Q19 -> 10.2 | M24: ='CO 95% 10 min'!P19 -> 1.991666667
B25: ½ hourly mean * | C25: 100 mg/m3 * | D25: =MAX(#REF!) ->  | E25: =AVERAGE(#REF!) ->  | F25: =MAX(#REF!) ->  | G25: =AVERAGE(#REF!) ->  | H25: =MAX(#REF!) ->  | I25: =AVERAGE(#REF!) ->  | J25: =MAX(#REF!) ->  | K25: =AVERAGE(#REF!) ->  | L25: =#REF! ->  | M25: =#REF! ->  | N25: n/a
B26: 95%ile 10-min avg * | C26: 150 mg/m3 * | D26: 6.07 | E26: 0.83 | F26: =MAX('CO 95% 10 min'!M10:M12) -> 11 | G26: =AVERAGE('CO 95% 10 min'!N10:N12) -> 2.4 | H26: =MAX('CO 95% 10 min'!M13:M15) -> 8.6 | I26: =AVERAGE('CO 95% 10 min'!N13:N15) -> 2.466666667 | J26: =MAX('CO 95% 10 min'!M16:M18) -> 16.5 | K26: =AVERAGE('CO 95% 10 min'!N16:N18) -> 2.433333333 | L26: ='CO 95% 10 min'!M19 -> 8.616666667 | M26: ='CO 95% 10 min'!N19 -> 2.033333333
A27: Ammonia | B27: Daily mean | C27: No limit set | D27: =MAX('NH3'!O7:O9) -> 6.1 | E27: =AVERAGE('NH3'!N7:N9) -> 1.266666667 | F27: =MAX('NH3'!O10-O12) -> 7.3 | G27: =AVERAGE('NH3'!N10:N12) -> 2.233333333 | H27: =MAX('NH3'!O13:O15) -> 5.7 | I27: =AVERAGE('NH3'!N13:N15) -> 2.066666667 | J27: =MAX('NH3'!O16:O18) -> 9.1 | K27: =AVERAGE('NH3'!N16:N18) -> 3.333333333 | L27: ='NH3'!O19 -> 9.1 | M27: ='NH3'!N19 -> 2.225
A28: * = delete or amend as appropriate
A29: Comments :
A30: 1/2 hourly mean for CO not applicable

Sheet NOx
A1: =+'Cover Page'!$B$29 -> Annual Performance Report 2022 | E1: =+'Cover Page'!$B$33 -> Peterborough Energy Recovery Facility
A3: Monitoring of Oxides of Nitrogen emissions | D3: Whole Installation | G3: See Notes in Cell Q3 | J3: =+A3 -> Monitoring of Oxides of Nitrogen emissions | N3: Per Combustion Line | Q3: Notes:
Q4: User to add logic to complete Whole installation, Table A5:G18. From the data in Per Combustion Line, Table J6:O79, subject to No. of lines installed
A5: mg/Nm3 | B5: 1/2 Hourly Reference Periods | E5: Daily Reference Periods
A6: =+'Cover Page'!C39 -> 2022 | B6: 1/2 hourly NOx ELV | C6: Monthly 1/2 hourly mean | D6: Highest 1/2 hourly maximum | E6: Daily NOx ELV | F6: Monthly daily mean | G6: Highest daily maximum | J6: =+A6 -> 2022 | K6: mg/Nm3 | L6: Monthly 1/2 hourly mean | M6: Monthly 1/2 hourly maximum | N6: Monthly daily mean | O6: Monthly daily maximum
A7: Jan | B7: 400 | C7: =L7 -> 115 | D7: =M7 -> 138.4 | E7: 200 | F7: =N7 -> 114.9 | G7: =O7 -> 116.8 | J7: A1 | K7: Jan | L7: 115 | M7: 138.4 | N7: 114.9 | O7: 116.8
A8: Feb | B8: 400 | C8: =L8 -> 114.7 | D8: =M8 -> 129.2 | E8: 200 | F8: =N8 -> 114.7 | G8: =O8 -> 112.7 | K8: Feb | L8: 114.7 | M8: 129.2 | N8: 114.7 | O8: 112.7
A9: Mar | B9: 400 | C9: 112.7 | D9: 167.9 | E9: 200 | F9: 112.7 | G9: 124.9 | K9: Mar | L9: 112.7 | M9: 167.9 | N9: 112.7 | O9: 124.9 | Q9: Whole Installation table A5:G18:
A10: Apr | B10: 400 | C10: 115.3 | D10: 142.3 | E10: 200 | F10: 115.3 | G10: 116.4 | K10: Apr | L10: 115.3 | M10: 142.3 | N10: 115.3 | O10: 116.4 | Q10: Mean: for 1/2 hourly and daily periods calculate mean of values across all operational combustion lines for the month
A11: May | B11: 400 | C11: 115.5 | D11: 130.9 | E11: 200 | F11: 115.4 | G11: 116.4 | K11: May | L11: 115.5 | M11: 130.9 | N11: 115.4 | O11: 116.4
A12: Jun | B12: 400 | C12: 115.5 | D12: 135.3 | E12: 200 | F12: 115.5 | G12: 116.4 | K12: Jun | L12: 115.5 | M12: 135.3 | N12: 115.5 | O12: 116.4
A13: Jul | B13: 400 | C13: 115.8 | D13: 135 | E13: 200 | F13: 115.8 | G13: 116.4 | K13: Jul | L13: 115.8 | M13: 135 | N13: 115.8 | O13: 116.4 | Q13: Maximum: for 1/2 hourly and daily periods use the highest value across all operational combustion lines for the month
A14: Aug | B14: 400 | C14: 115.7 | D14: 149.2 | E14: 200 | F14: 115.7 | G14: 116.8 | K14: Aug | L14: 115.7 | M14: 149.2 | N14: 115.7 | O14: 116.8
A15: Sep | B15: 400 | C15: 115.6 | D15: 220.8 | E15: 200 | F15: 115.5 | G15: 118.7 | K15: Sep | L15: 115.6 | M15: 220.8 | N15: 115.5 | O15: 118.7
A16: Oct | B16: 400 | C16: 113.9 | D16: 132.9 | E16: 200 | F16: 114.1 | G16: 116.9 | K16: Oct | L16: 113.9 | M16: 132.9 | N16: 114.1 | O16: 116.9
A17: Nov | B17: 400 | C17: 115 | D17: 159.5 | E17: 200 | F17: 115.1 | G17: 117.9 | K17: Nov | L17: 115 | M17: 159.5 | N17: 115.1 | O17: 117.9
A18: Dec | B18: 400 | C18: 117.1 | D18: 195.4 | E18: 200 | F18: 117.1 | G18: 125.2 | K18: Dec | L18: 117.1 | M18: 195.4 | N18: 117.1 | O18: 125.2
K19: Annual | L19: =AVERAGE(L7:L18) -> 115.15 | M19: =MAX(M7:M18) -> 220.8 | N19: =AVERAGE(N7:N18) -> 115.15 | O19: =MAX(O7:O18) -> 125.2
J21: =+A6 -> 2022 | K21: mg/Nm3 | L21: Monthly 1/2 hourly mean | M21: Monthly 1/2 hourly maximum | N21: Monthly daily mean | O21: Monthly daily maximum
J22: A2 | K22: Jan
K23: Feb
K24: Mar
K25: Apr
K26: May
K27: Jun
K28: Jul
K29: Aug
K30: Sep
K31: Oct
K32: Nov
K33: Dec
K34: Annual | L34: =AVERAGE(L22:L33) ->  | M34: =MAX(M22:M33) -> 0 | N34: =AVERAGE(N22:N33) ->  | O34: =MAX(O22:O33) -> 0
J36: =+A6 -> 2022 | K36: mg/Nm3 | L36: Monthly 1/2 hourly mean | M36: Monthly 1/2 hourly maximum | N36: Monthly daily mean | O36: Monthly daily maximum
J37: A3 | K37: Jan
K38: Feb
K39: Mar
K40: Apr
K41: May
K42: Jun
K43: Jul
K44: Aug
K45: Sep
K46: Oct
K47: Nov
A48: Comments : | K48: Dec
K49: Annual | L49: =AVERAGE(L37:L48) ->  | M49: =MAX(M37:M48) -> 0 | N49: =AVERAGE(N37:N48) ->  | O49: =MAX(O37:O48) -> 0
J51: =+A6 -> 2022 | K51: mg/Nm3 | L51: Monthly 1/2 hourly mean | M51: Monthly 1/2 hourly maximum | N51: Monthly daily mean | O51: Monthly daily maximum
J52: A4 | K52: Jan
K53: Feb
K54: Mar
K55: Apr
K56: May
K57: Jun
K58: Jul
K59: Aug
K60: Sep
K61: Oct
K62: Nov
K63: Dec
K64: Annual | L64: =AVERAGE(L52:L63) ->  | M64: =MAX(M52:M63) -> 0 | N64: =AVERAGE(N52:N63) ->  | O64: =MAX(O52:O63) -> 0
J66: =+A6 -> 2022 | K66: mg/Nm3 | L66: Monthly 1/2 hourly mean | M66: Monthly 1/2 hourly maximum | N66: Monthly daily mean | O66: Monthly daily maximum
J67: A5 | K67: Jan
K68: Feb
K69: Mar
K70: Apr
K71: May
K72: Jun
K73: Jul
K74: Aug
K75: Sep
K76: Oct
K77: Nov
K78: Dec
K79: Annual | L79: =AVERAGE(L67:L78) ->  | M79: =MAX(M67:M78) -> 0 | N79: =AVERAGE(N67:N78) ->  | O79: =MAX(O67:O78) -> 0

Sheet CO 95% 10 min
A1: =+'Cover Page'!$B$29 -> Annual Performance Report 2022 | E1: =+'Cover Page'!$B$33 -> Peterborough Energy Recovery Facility
A3: Monitoring of Carbon Monoxide (10-minute avg) | E3: Whole Installation | H3: See Notes in Cell S3 | J3: =+A3 -> Monitoring of Carbon Monoxide (10-minute avg) | O3: Per Combustion Line | Q3: Notes: | S3: Notes:
S4: User to add logic to complete Whole installation, Table A5:H18. From the data in Per Combustion Line, Table K6:Q79, subject to No. of lines installed
A5: mg/Nm3 | B5: 10-minute Reference Periods | F5: Daily Reference Periods
A6: =+'Cover Page'!C39 -> 2022 | B6: 95%ile 10-min avg CO ELV | C6: 95%ile 10-min avg maximum | D6: Monthly CO 10-min avg mean | E6: 10-min avg maximum | F6: Daily CO ELV | G6: Monthly daily mean | H6: Highest daily maximum | K6: =+A6 -> 2022 | L6: mg/Nm3 | M6: 95%ile 10-min avg maximum | N6: Monthly CO 10-min avg mean | O6: 10-min avg maximum | P6: Monthly daily mean | Q6: Monthly daily maximum
A7: Jan | B7: 150 | C7: =M7 -> 6.3 | D7: =N7 -> 0.1 | E7: =O7 -> 236.3 | F7: 50 | G7: =P7 -> 0.1 | H7: =Q7 -> 1.6 | K7: A1 | L7: Jan | M7: 6.3 | N7: 0.1 | O7: 236.3 | P7: 0.1 | Q7: 1.6
A8: Feb | B8: =+B7 -> 150 | C8: =M8 -> 5.8 | D8: =N8 -> 0.2 | E8: =O8 -> 168.3 | F8: =+F7 -> 50 | G8: =P8 -> 0.1 | H8: =Q8 -> 1.2 | L8: Feb | M8: 5.8 | N8: 0.2 | O8: 168.3 | P8: 0.1 | Q8: 1.2
A9: Mar | B9: =+B8 -> 150 | C9: 6.1 | D9: 2.2 | E9: 195.3 | F9: =+F8 -> 50 | G9: 2.2 | H9: 3.5 | L9: Mar | M9: 6.1 | N9: 2.2 | O9: 195.3 | P9: 2.2 | Q9: 3.5 | S9: Whole Installation table A5:H18:
A10: Apr | B10: 150 | C10: 11 | D10: 2.4 | E10: 136.2 | F10: 50 | G10: 2.3 | H10: 3.6 | L10: Apr | M10: 11 | N10: 2.4 | O10: 136.2 | P10: 2.3 | Q10: 3.6 | S10: Mean: for 10-min and daily periods use average of all operational combustion lines.
A11: May | B11: 150 | C11: 6.9 | D11: 2.4 | E11: 414.8 | F11: 50 | G11: 2.4 | H11: 5.8 | L11: May | M11: 6.9 | N11: 2.4 | O11: 414.8 | P11: 2.4 | Q11: 5.8
A12: Jun | B12: 150 | C12: 10 | D12: 2.4 | E12: 178.8 | F12: 50 | G12: 2.4 | H12: 3.6 | L12: Jun | M12: 10 | N12: 2.4 | O12: 178.8 | P12: 2.4 | Q12: 3.6
A13: Jul | B13: 150 | C13: 5.2 | D13: 2.5 | E13: 246.3 | F13: 50 | G13: 2.4 | H13: 3.7 | L13: Jul | M13: 5.2 | N13: 2.5 | O13: 246.3 | P13: 2.4 | Q13: 3.7 | S13: Maximum: for 10-min and daily periods use the highest of all operational combustion lines in any month.
A14: Aug | B14: 150 | C14: 7.2 | D14: 2.6 | E14: 404.2 | F14: 50 | G14: 2.4 | H14: 4.9 | L14: Aug | M14: 7.2 | N14: 2.6 | O14: 404.2 | P14: 2.4 | Q14: 4.9
A15: Sep | B15: 150 | C15: 8.6 | D15: 2.3 | E15: 239.3 | F15: 50 | G15: 2.3 | H15: 4 | L15: Sep | M15: 8.6 | N15: 2.3 | O15: 239.3 | P15: 2.3 | Q15: 4
A16: Oct | B16: 150 | C16: 12.8 | D16: 2.1 | E16: 147.5 | F16: 50 | G16: 2.1 | H16: 3.6 | L16: Oct | M16: 12.8 | N16: 2.1 | O16: 147.5 | P16: 2.1 | Q16: 3.6
A17: Nov | B17: 150 | C17: 16.5 | D17: 2.4 | E17: 117.7 | F17: 50 | G17: 2.4 | H17: 4.3 | L17: Nov | M17: 16.5 | N17: 2.4 | O17: 117.7 | P17: 2.4 | Q17: 4.3
A18: Dec | B18: 150 | C18: 7 | D18: 2.8 | E18: 439.4 | F18: 50 | G18: 2.8 | H18: 10.2 | L18: Dec | M18: 7 | N18: 2.8 | O18: 439.4 | P18: 2.8 | Q18: 10.2
L19: Annual | M19: =AVERAGE(M7:M18) -> 8.616666667 | N19: =AVERAGE(N7:N18) -> 2.033333333 | O19: =MAX(O7:O18) -> 439.4 | P19: =AVERAGE(P7:P18) -> 1.991666667 | Q19: =MAX(Q7:Q18) -> 10.2
K21: =+A6 -> 2022 | L21: mg/Nm3 | M21: 95%ile 10-min avg maximum | N21: Monthly CO 10-min avg mean | O21: 10-min avg maximum | P21: Monthly daily mean | Q21: Monthly daily maximum
K22: A2 | L22: Jan
L23: Feb
L24: Mar
L25: Apr
L26: May
L27: Jun
L28: Jul
L29: Aug
L30: Sep
L31: Oct
L32: Nov
L33: Dec
L34: Annual | M34: =AVERAGE(M22:M33) ->  | O34: =MAX(O22:O33) -> 0 | P34: =AVERAGE(P22:P33) ->  | Q34: =MAX(Q22:Q33) -> 0
K36: =+A6 -> 2022 | L36: mg/Nm3 | M36: 95%ile 10-min avg maximum | N36: Monthly CO 10-min avg mean | O36: 10-min avg maximum | P36: Monthly daily mean | Q36: Monthly daily maximum
K37: A3 | L37: Jan
L38: Feb
L39: Mar
L40: Apr
L41: May
L42: Jun
L43: Jul
L44: Aug
L45: Sep
L46: Oct
L47: Nov
A48: Comments : | L48: Dec
A49: Environment Agency explanatory note: The 10-minute average ELV is based on the “95th percentile”. In this case this means that 95% of the 10 minute averages in the relevant 24-hour period (i.e. 137) must be below 150 mg/Nm3, and 5% (i.e. 7) are allowed to be any value above 150 mg/Nm3. Whilst we expect operators to minimise CO emissions at all times, it is perfectly acceptable for the value of the maximum 10-minute average to be above 150 mg/Nm3, provided the 95th percentile ELV has been met for that period. | L49: Annual | M49: =AVERAGE(M37:M48) ->  | O49: =MAX(O37:O48) -> 0 | P49: =AVERAGE(P37:P48) ->  | Q49: =MAX(Q37:Q48) -> 0
K51: =+A6 -> 2022 | L51: mg/Nm3 | M51: 95%ile 10-min avg maximum | N51: Monthly CO 10-min avg mean | O51: 10-min avg maximum | P51: Monthly daily mean | Q51: Monthly daily maximum
K52: A4 | L52: Jan
L53: Feb
L54: Mar
L55: Apr
L56: May
L57: Jun
L58: Jul
L59: Aug
L60: Sep
L61: Oct
L62: Nov
L63: Dec
L64: Annual | M64: =AVERAGE(M52:M63) ->  | O64: =MAX(O52:O63) -> 0 | P64: =AVERAGE(P52:P63) ->  | Q64: =MAX(Q52:Q63) -> 0
K66: =+A6 -> 2022 | L66: mg/Nm3 | M66: 95%ile 10-min avg maximum | N66: Monthly CO 10-min avg mean | O66: 10-min avg maximum | P66: Monthly daily mean | Q66: Monthly daily maximum
K67: A5 | L67: Jan
L68: Feb
L69: Mar
L70: Apr
L71: May
L72: Jun
L73: Jul
L74: Aug
L75: Sep
L76: Oct
L77: Nov
L78: Dec
L79: Annual | M79: =AVERAGE(M67:M78) ->  | O79: =MAX(O67:O78) -> 0 | P79: =AVERAGE(P67:P78) ->  | Q79: =MAX(Q67:Q78) -> 0

Sheet HCl
A1: =+'Cover Page'!$B$29 -> Annual Performance Report 2022 | E1: =+'Cover Page'!$B$33 -> Peterborough Energy Recovery Facility
A3: Monitoring of Hydrogen Chloride emissions | D3: Whole Installation | G3: See Notes in Cell Q3 | J3: =+A3 -> Monitoring of Hydrogen Chloride emissions | N3: Per Combustion Line | Q3: Notes:
Q4: User to add logic to complete Whole installation, Table A5:G18. From the data in Per Combustion Line, Table J6:O79, subject to No. of lines installed
A5: mg/Nm3 | B5: 1/2 Hourly Reference Periods | E5: Daily Reference Periods
A6: =+'Cover Page'!C39 -> 2022 | B6: 1/2 hourly HCl ELV | C6: Monthly 1/2 hourly mean | D6: Highest 1/2 hourly maximum | E6: Daily HCl ELV | F6: Monthly daily mean | G6: Highest daily maximum | J6: =+A6 -> 2022 | K6: mg/Nm3 | L6: Monthly 1/2 hourly mean | M6: Monthly 1/2 hourly maximum | N6: Monthly daily mean | O6: Monthly daily maximum
A7: Jan | B7: 60 | C7: =L7 -> 6.8 | D7: =M7 -> 13.8 | E7: 10 | F7: =N7 -> 6.8 | G7: =O7 -> 7.9 | J7: A1 | K7: Jan | L7: 6.8 | M7: 13.8 | N7: 6.8 | O7: 7.9
A8: Feb | B8: 60 | C8: =L8 -> 6.9 | D8: =M8 -> 12.7 | E8: 10 | F8: =N8 -> 6.9 | G8: =O8 -> 7.7 | K8: Feb | L8: 6.9 | M8: 12.7 | N8: 6.9 | O8: 7.7
A9: Mar | B9: 60 | C9: 5.3 | D9: 23.5 | E9: 10 | F9: 5.3 | G9: 6.7 | K9: Mar | L9: 5.3 | M9: 23.5 | N9: 5.3 | O9: 6.7 | Q9: Whole Installation table A5:G18:
A10: Apr | B10: 60 | C10: 6.1 | D10: 13.1 | E10: 10 | F10: 6.1 | G10: 8.1 | K10: Apr | L10: 6.1 | M10: 13.1 | N10: 6.1 | O10: 8.1 | Q10: Mean: for 1/2 hourly and daily periods calculate mean of values across all operational combustion lines for the month
A11: May | B11: 60 | C11: 6 | D11: 13.6 | E11: 10 | F11: 6 | G11: 7.4 | K11: May | L11: 6 | M11: 13.6 | N11: 6 | O11: 7.4
A12: Jun | B12: 60 | C12: 6.6 | D12: 12 | E12: 10 | F12: 6.6 | G12: 8 | K12: Jun | L12: 6.6 | M12: 12 | N12: 6.6 | O12: 8
A13: Jul | B13: 60 | C13: 7.1 | D13: 13.2 | E13: 10 | F13: 7 | G13: 7.6 | K13: Jul | L13: 7.1 | M13: 13.2 | N13: 7 | O13: 7.6 | Q13: Maximum: for 1/2 hourly and daily periods use the highest value across all operational combustion lines for the month
A14: Aug | B14: 60 | C14: 5.6 | D14: 13.7 | E14: 10 | F14: 5.9 | G14: 7.4 | K14: Aug | L14: 5.6 | M14: 13.7 | N14: 5.9 | O14: 7.4
A15: Sep | B15: 60 | C15: 6.4 | D15: 15.6 | E15: 10 | F15: 6.3 | G15: 9 | K15: Sep | L15: 6.4 | M15: 15.6 | N15: 6.3 | O15: 9
A16: Oct | B16: 60 | C16: 5.2 | D16: 13.4 | E16: 10 | F16: 5.1 | G16: 7.7 | K16: Oct | L16: 5.2 | M16: 13.4 | N16: 5.1 | O16: 7.7
A17: Nov | B17: 60 | C17: 4.2 | D17: 25.1 | E17: 10 | F17: 4.2 | G17: 6.1 | K17: Nov | L17: 4.2 | M17: 25.1 | N17: 4.2 | O17: 6.1
A18: Dec | B18: 60 | C18: 6 | D18: 13.6 | E18: 10 | F18: 5.9 | G18: 7.4 | K18: Dec | L18: 6 | M18: 13.6 | N18: 5.9 | O18: 7.4
K19: Annual | L19: =AVERAGE(L7:L18) -> 6.016666667 | M19: =MAX(M7:M18) -> 25.1 | N19: =AVERAGE(N7:N18) -> 6.008333333 | O19: =MAX(O7:O18) -> 9
J21: =+A6 -> 2022 | K21: mg/Nm3 | L21: Monthly 1/2 hourly mean | M21: Monthly 1/2 hourly maximum | N21: Monthly daily mean | O21: Monthly daily maximum
J22: A2 | K22: Jan
K23: Feb
K24: Mar
K25: Apr
K26: May
K27: Jun
K28: Jul
K29: Aug
K30: Sep
K31: Oct
K32: Nov
K33: Dec
K34: Annual | L34: =AVERAGE(L22:L33) ->  | M34: =MAX(M22:M33) -> 0 | N34: =AVERAGE(N22:N33) ->  | O34: =MAX(O22:O33) -> 0
J36: =+A6 -> 2022 | K36: mg/Nm3 | L36: Monthly 1/2 hourly mean | M36: Monthly 1/2 hourly maximum | N36: Monthly daily mean | O36: Monthly daily maximum
J37: A3 | K37: Jan
K38: Feb
K39: Mar
K40: Apr
K41: May
K42: Jun
K43: Jul
K44: Aug
K45: Sep
K46: Oct
K47: Nov
A48: Comments : | K48: Dec
K49: Annual | L49: =AVERAGE(L37:L48) ->  | M49: =MAX(M37:M48) -> 0 | N49: =AVERAGE(N37:N48) ->  | O49: =MAX(O37:O48) -> 0
J51: =+A6 -> 2022 | K51: mg/Nm3 | L51: Monthly 1/2 hourly mean | M51: Monthly 1/2 hourly maximum | N51: Monthly daily mean | O51: Monthly daily maximum
J52: A4 | K52: Jan
K53: Feb
K54: Mar
K55: Apr
K56: May
K57: Jun
K58: Jul
K59: Aug
K60: Sep
K61: Oct
K62: Nov
K63: Dec
K64: Annual | L64: =AVERAGE(L52:L63) ->  | M64: =MAX(M52:M63) -> 0 | N64: =AVERAGE(N52:N63) ->  | O64: =MAX(O52:O63) -> 0
J66: =+A6 -> 2022 | K66: mg/Nm3 | L66: Monthly 1/2 hourly mean | M66: Monthly 1/2 hourly maximum | N66: Monthly daily mean | O66: Monthly daily maximum
J67: A5 | K67: Jan
K68: Feb
K69: Mar
K70: Apr
K71: May
K72: Jun
K73: Jul
K74: Aug
K75: Sep
K76: Oct
K77: Nov
K78: Dec
K79: Annual | L79: =AVERAGE(L67:L78) ->  | M79: =MAX(M67:M78) -> 0 | N79: =AVERAGE(N67:N78) ->  | O79: =MAX(O67:O78) -> 0

Sheet SO2
A1: =+'Cover Page'!$B$29 -> Annual Performance Report 2022 | E1: =+'Cover Page'!$B$33 -> Peterborough Energy Recovery Facility
A3: Monitoring of Sulphur dioxide emissions | D3: Whole Installation | G3: See Notes in Cell Q3 | J3: =+A3 -> Monitoring of Sulphur dioxide emissions | N3: Per Combustion Line | Q3: Notes:
Q4: User to add logic to complete Whole installation, Table A5:G18. From the data in Per Combustion Line, Table J6:O79, subject to No. of lines installed
A5: mg/Nm3 | B5: 1/2 Hourly Reference Periods | E5: Daily Reference Periods
A6: =+'Cover Page'!C39 -> 2022 | B6: 1/2 hourly SO2 ELV | C6: Monthly 1/2 hourly mean | D6: Highest 1/2 hourly maximum | E6: Daily SO2 ELV | F6: Monthly daily mean | G6: Highest daily maximum | J6: =+A6 -> 2022 | K6: mg/Nm3 | L6: Monthly 1/2 hourly mean | M6: Monthly 1/2 hourly maximum | N6: Monthly daily mean | O6: Monthly daily maximum
A7: Jan | B7: 200 | C7: =L7 -> 26.2 | D7: =M7 -> 168 | E7: 50 | F7: =N7 -> 26.1 | G7: =O7 -> 32.3 | J7: A1 | K7: Jan | L7: 26.2 | M7: 168 | N7: 26.1 | O7: 32.3
A8: Feb | B8: 200 | C8: =L8 -> 26.9 | D8: =M8 -> 182.5 | E8: 50 | F8: =N8 -> 26.8 | G8: =O8 -> 31.4 | K8: Feb | L8: 26.9 | M8: 182.5 | N8: 26.8 | O8: 31.4
A9: Mar | B9: 200 | C9: 28.6 | D9: 130.2 | E9: 50 | F9: 28.6 | G9: 33.8 | K9: Mar | L9: 28.6 | M9: 130.2 | N9: 28.6 | O9: 33.8 | Q9: Whole Installation table A5:G18:
A10: Apr | B10: 200 | C10: 28.5 | D10: 66.2 | E10: 50 | F10: 29 | G10: 34.2 | K10: Apr | L10: 28.5 | M10: 66.2 | N10: 29 | O10: 34.2 | Q10: Mean: for 1/2 hourly and daily periods calculate mean of values across all operational combustion lines for the month
A11: May | B11: 200 | C11: 29.6 | D11: 99.2 | E11: 50 | F11: 29.6 | G11: 33.8 | K11: May | L11: 29.6 | M11: 99.2 | N11: 29.6 | O11: 33.8
A12: Jun | B12: 200 | C12: 27.5 | D12: 78.5 | E12: 50 | F12: 27.9 | G12: 32.4 | K12: Jun | L12: 27.5 | M12: 78.5 | N12: 27.9 | O12: 32.4
A13: Jul | B13: 200 | C13: 27.3 | D13: 127.4 | E13: 50 | F13: 27.5 | G13: 32.2 | K13: Jul | L13: 27.3 | M13: 127.4 | N13: 27.5 | O13: 32.2 | Q13: Maximum: for 1/2 hourly and daily periods use the highest value across all operational combustion lines for the month
A14: Aug | B14: 200 | C14: 27.2 | D14: 109 | E14: 50 | F14: 27 | G14: 34.4 | K14: Aug | L14: 27.2 | M14: 109 | N14: 27 | O14: 34.4
A15: Sep | B15: 200 | C15: 19.4 | D15: 111.9 | E15: 50 | F15: 19.5 | G15: 28.4 | K15: Sep | L15: 19.4 | M15: 111.9 | N15: 19.5 | O15: 28.4
A16: Oct | B16: 200 | C16: 18.4 | D16: 49.4 | E16: 50 | F16: 18.3 | G16: 30.4 | K16: Oct | L16: 18.4 | M16: 49.4 | N16: 18.3 | O16: 30.4
A17: Nov | B17: 200 | C17: 16.7 | D17: 89.7 | E17: 50 | F17: 16.7 | G17: 25 | K17: Nov | L17: 16.7 | M17: 89.7 | N17: 16.7 | O17: 25
A18: Dec | B18: 200 | C18: 24.5 | D18: 182.3 | E18: 50 | F18: 24.5 | G18: 29.9 | K18: Dec | L18: 24.5 | M18: 182.3 | N18: 24.5 | O18: 29.9
K19: Annual | L19: =AVERAGE(L7:L18) -> 25.06666667 | M19: =MAX(M7:M18) -> 182.5 | N19: =AVERAGE(N7:N18) -> 25.125 | O19: =MAX(O7:O18) -> 34.4
J21: =+A6 -> 2022 | K21: mg/Nm3 | L21: Monthly 1/2 hourly mean | M21: Monthly 1/2 hourly maximum | N21: Monthly daily mean | O21: Monthly daily maximum
J22: A2 | K22: Jan
K23: Feb
K24: Mar
K25: Apr
K26: May
K27: Jun
K28: Jul
K29: Aug
K30: Sep
K31: Oct
K32: Nov
K33: Dec
K34: Annual | L34: =AVERAGE(L22:L33) ->  | M34: =MAX(M22:M33) -> 0 | N34: =AVERAGE(N22:N33) ->  | O34: =MAX(O22:O33) -> 0
J36: =+A6 -> 2022 | K36: mg/Nm3 | L36: Monthly 1/2 hourly mean | M36: Monthly 1/2 hourly maximum | N36: Monthly daily mean | O36: Monthly daily maximum
J37: A3 | K37: Jan
K38: Feb
K39: Mar
K40: Apr
K41: May
K42: Jun
K43: Jul
K44: Aug
K45: Sep
K46: Oct
K47: Nov
A48: Comments : | K48: Dec
K49: Annual | L49: =AVERAGE(L37:L48) ->  | M49: =MAX(M37:M48) -> 0 | N49: =AVERAGE(N37:N48) ->  | O49: =MAX(O37:O48) -> 0
J51: =+A6 -> 2022 | K51: mg/Nm3 | L51: Monthly 1/2 hourly mean | M51: Monthly 1/2 hourly maximum | N51: Monthly daily mean | O51: Monthly daily maximum
J52: A4 | K52: Jan
K53: Feb
K54: Mar
K55: Apr
K56: May
K57: Jun
K58: Jul
K59: Aug
K60: Sep
K61: Oct
K62: Nov
K63: Dec
K64: Annual | L64: =AVERAGE(L52:L63) ->  | M64: =MAX(M52:M63) -> 0 | N64: =AVERAGE(N52:N63) ->  | O64: =MAX(O52:O63) -> 0
J66: =+A6 -> 2022 | K66: mg/Nm3 | L66: Monthly 1/2 hourly mean | M66: Monthly 1/2 hourly maximum | N66: Monthly daily mean | O66: Monthly daily maximum
J67: A5 | K67: Jan
K68: Feb
K69: Mar
K70: Apr
K71: May
K72: Jun
K73: Jul
K74: Aug
K75: Sep
K76: Oct
K77: Nov
K78: Dec
K79: Annual | L79: =AVERAGE(L67:L78) ->  | M79: =MAX(M67:M78) -> 0 | N79: =AVERAGE(N67:N78) ->  | O79: =MAX(O67:O78) -> 0

Sheet TOC
A1: =+'Cover Page'!$B$29 -> Annual Performance Report 2022 | E1: =+'Cover Page'!$B$33 -> Peterborough Energy Recovery Facility
A3: Monitoring of Total organic carbon emissions | D3: Whole Installation | G3: See Notes in Cell Q3 | J3: =+A3 -> Monitoring of Total organic carbon emissions | N3: Per Combustion Line | Q3: Notes:
Q4: User to add logic to complete Whole installation, Table A5:G18. From the data in Per Combustion Line, Table J6:O79, subject to No. of lines installed
A5: mg/Nm3 | B5: 1/2 Hourly Reference Periods | E5: Daily Reference Periods
A6: =+'Cover Page'!C39 -> 2022 | B6: 1/2 hourly TOC ELV | C6: Monthly 1/2 hourly mean | D6: Highest 1/2 hourly maximum | E6: Daily TOC ELV | F6: Monthly daily mean | G6: Highest daily maximum | J6: =+A6 -> 2022 | K6: mg/Nm3 | L6: Monthly 1/2 hourly mean | M6: Monthly 1/2 hourly maximum | N6: Monthly daily mean | O6: Monthly daily maximum
A7: Jan | B7: 20 | C7: =L7 -> 0.8 | D7: =M7 -> 3.2 | E7: 10 | F7: =N7 -> 0.8 | G7: =O7 -> 2.5 | J7: A1 | K7: Jan | L7: 0.8 | M7: 3.2 | N7: 0.8 | O7: 2.5
A8: Feb | B8: 20 | C8: =L8 -> 0.1 | D8: =M8 -> 7.3 | E8: 10 | F8: =N8 -> 0.1 | G8: =O8 -> 0.2 | K8: Feb | L8: 0.1 | M8: 7.3 | N8: 0.1 | O8: 0.2
A9: Mar | B9: 20 | C9: 0.5 | D9: 6.9 | E9: 10 | F9: 0.5 | G9: 0.6 | K9: Mar | L9: 0.5 | M9: 6.9 | N9: 0.5 | O9: 0.6 | Q9: Whole Installation table A5:G18:
A10: Apr | B10: 20 | C10: 0.4 | D10: 3.8 | E10: 10 | F10: 0.4 | G10: 1.1 | K10: Apr | L10: 0.4 | M10: 3.8 | N10: 0.4 | O10: 1.1 | Q10: Mean: for 1/2 hourly and daily periods calculate mean of values across all operational combustion lines for the month
A11: May | B11: 20 | C11: 0.6 | D11: 14.7 | E11: 10 | F11: 0.6 | G11: 0.9 | K11: May | L11: 0.6 | M11: 14.7 | N11: 0.6 | O11: 0.9
A12: Jun | B12: 20 | C12: 0.6 | D12: 2.6 | E12: 10 | F12: 0.6 | G12: 0.9 | K12: Jun | L12: 0.6 | M12: 2.6 | N12: 0.6 | O12: 0.9
A13: Jul | B13: 20 | C13: 0.6 | D13: 4.4 | E13: 10 | F13: 0.5 | G13: 0.7 | K13: Jul | L13: 0.6 | M13: 4.4 | N13: 0.5 | O13: 0.7 | Q13: Maximum: for 1/2 hourly and daily periods use the highest value across all operational combustion lines for the month
A14: Aug | B14: 20 | C14: 0.5 | D14: 4 | E14: 10 | F14: 0.5 | G14: 0.6 | K14: Aug | L14: 0.5 | M14: 4 | N14: 0.5 | O14: 0.6
A15: Sep | B15: 20 | C15: 0.6 | D15: 13.3 | E15: 10 | F15: 0.5 | G15: 0.8 | K15: Sep | L15: 0.6 | M15: 13.3 | N15: 0.5 | O15: 0.8
A16: Oct | B16: 20 | C16: 0.5 | D16: 5.7 | E16: 10 | F16: 0.5 | G16: 0.8 | K16: Oct | L16: 0.5 | M16: 5.7 | N16: 0.5 | O16: 0.8
A17: Nov | B17: 20 | C17: 0.4 | D17: 6.6 | E17: 10 | F17: 0.4 | G17: 0.7 | K17: Nov | L17: 0.4 | M17: 6.6 | N17: 0.4 | O17: 0.7
A18: Dec | B18: 20 | C18: 0.5 | D18: 14.1 | E18: 10 | F18: 0.5 | G18: 0.8 | K18: Dec | L18: 0.5 | M18: 14.1 | N18: 0.5 | O18: 0.8
K19: Annual | L19: =AVERAGE(L7:L18) -> 0.5083333333 | M19: =MAX(M7:M18) -> 14.7 | N19: =AVERAGE(N7:N18) -> 0.4916666667 | O19: =MAX(O7:O18) -> 2.5
J21: =+A6 -> 2022 | K21: mg/Nm3 | L21: Monthly 1/2 hourly mean | M21: Monthly 1/2 hourly maximum | N21: Monthly daily mean | O21: Monthly daily maximum
J22: A2 | K22: Jan
K23: Feb
K24: Mar
K25: Apr
K26: May
K27: Jun
K28: Jul
K29: Aug
K30: Sep
K31: Oct
K32: Nov
K33: Dec
K34: Annual | L34: =AVERAGE(L22:L33) ->  | M34: =MAX(M22:M33) -> 0 | N34: =AVERAGE(N22:N33) ->  | O34: =MAX(O22:O33) -> 0
J36: =+A6 -> 2022 | K36: mg/Nm3 | L36: Monthly 1/2 hourly mean | M36: Monthly 1/2 hourly maximum | N36: Monthly daily mean | O36: Monthly daily maximum
J37: A3 | K37: Jan
K38: Feb
K39: Mar
K40: Apr
K41: May
K42: Jun
K43: Jul
K44: Aug
K45: Sep
K46: Oct
K47: Nov
A48: Comments : | K48: Dec
K49: Annual | L49: =AVERAGE(L37:L48) ->  | M49: =MAX(M37:M48) -> 0 | N49: =AVERAGE(N37:N48) ->  | O49: =MAX(O37:O48) -> 0
J51: =+A6 -> 2022 | K51: mg/Nm3 | L51: Monthly 1/2 hourly mean | M51: Monthly 1/2 hourly maximum | N51: Monthly daily mean | O51: Monthly daily maximum
J52: A4 | K52: Jan
K53: Feb
K54: Mar
K55: Apr
K56: May
K57: Jun
K58: Jul
K59: Aug
K60: Sep
K61: Oct
K62: Nov
K63: Dec
K64: Annual | L64: =AVERAGE(L52:L63) ->  | M64: =MAX(M52:M63) -> 0 | N64: =AVERAGE(N52:N63) ->  | O64: =MAX(O52:O63) -> 0
J66: =+A6 -> 2022 | K66: mg/Nm3 | L66: Monthly 1/2 hourly mean | M66: Monthly 1/2 hourly maximum | N66: Monthly daily mean | O66: Monthly daily maximum
J67: A5 | K67: Jan
K68: Feb
K69: Mar
K70: Apr
K71: May
K72: Jun
K73: Jul
K74: Aug
K75: Sep
K76: Oct
K77: Nov
K78: Dec
K79: Annual | L79: =AVERAGE(L67:L78) ->  | M79: =MAX(M67:M78) -> 0 | N79: =AVERAGE(N67:N78) ->  | O79: =MAX(O67:O78) -> 0

Sheet Particulates
A1: =+'Cover Page'!$B$29 -> Annual Performance Report 2022 | E1: =+'Cover Page'!$B$33 -> Peterborough Energy Recovery Facility
A3: Monitoring of Particulate matter emissions | D3: Whole Installation | G3: See Notes in Cell Q3 | J3: =+A3 -> Monitoring of Particulate matter emissions | N3: Per Combustion Line | Q3: Notes:
Q4: User to add logic to complete Whole installation, Table A5:G18. From the data in Per Combustion Line, Table J6:O79, subject to No. of lines installed
A5: mg/Nm3 | B5: 1/2 Hourly Reference Periods | E5: Daily Reference Periods
A6: =+'Cover Page'!C39 -> 2022 | B6: 1/2 hourly PM ELV | C6: Monthly 1/2 hourly mean | D6: Highest 1/2 hourly maximum | E6: Daily PM ELV | F6: Monthly daily mean | G6: Highest daily maximum | J6: =+A6 -> 2022 | K6: mg/Nm3 | L6: Monthly 1/2 hourly mean | M6: Monthly 1/2 hourly maximum | N6: Monthly daily mean | O6: Monthly daily maximum
A7: Jan | B7: 30 | C7: =L7 -> 0.5 | D7: =M7 -> 8.9 | E7: 10 | F7: =N7 -> 0.5 | G7: =O8 -> 1.9 | J7: A1 | K7: Jan | L7: 0.5 | M7: 8.9 | N7: 0.5 | O7: 1.7
A8: Feb | B8: 30 | C8: =L8 -> 1.2 | D8: =M8 -> 10.1 | E8: 10 | F8: =N8 -> 1.1 | G8: =O9 -> 3.2 | K8: Feb | L8: 1.2 | M8: 10.1 | N8: 1.1 | O8: 1.9
A9: Mar | B9: 30 | C9: 1.1 | D9: 7.8 | E9: 10 | F9: 1 | G9: 2.3 | K9: Mar | L9: 1.1 | M9: 7.8 | N9: 1 | O9: 3.2 | Q9: Whole Installation table A5:G18:
A10: Apr | B10: 30 | C10: 0.7 | D10: 4.4 | E10: 10 | F10: 0.6 | G10: 3.6 | K10: Apr | L10: 0.7 | M10: 4.4 | N10: 0.6 | O10: 2.3 | Q10: Mean: for 1/2 hourly and daily periods calculate mean of values across all operational combustion lines for the month
A11: May | B11: 30 | C11: 2.7 | D11: 8.4 | E11: 10 | F11: 2.7 | G11: 2.7 | K11: May | L11: 2.7 | M11: 8.4 | N11: 2.7 | O11: 3.6
A12: Jun | B12: 30 | C12: 1.8 | D12: 8.7 | E12: 10 | F12: 1.8 | G12: 1.8 | K12: Jun | L12: 1.8 | M12: 8.7 | N12: 1.8 | O12: 2.7
A13: Jul | B13: 30 | C13: 1.1 | D13: 3.3 | E13: 10 | F13: 1 | G13: 7 | K13: Jul | L13: 1.1 | M13: 3.3 | N13: 1 | O13: 1.8 | Q13: Maximum: for 1/2 hourly and daily periods use the highest value across all operational combustion lines for the month
A14: Aug | B14: 30 | C14: 4.9 | D14: 18.6 | E14: 10 | F14: 4.9 | G14: 4.8 | K14: Aug | L14: 4.9 | M14: 18.6 | N14: 4.9 | O14: 7
A15: Sep | B15: 30 | C15: 1.8 | D15: 16.2 | E15: 10 | F15: 1.7 | G15: 4.2 | K15: Sep | L15: 1.8 | M15: 16.2 | N15: 1.7 | O15: 4.8
A16: Oct | B16: 30 | C16: 1.6 | D16: 10.3 | E16: 10 | F16: 1.5 | G16: 2.1 | K16: Oct | L16: 1.6 | M16: 10.3 | N16: 1.5 | O16: 4.2
A17: Nov | B17: 30 | C17: 1 | D17: 6.6 | E17: 10 | F17: 1 | G17: 3.1 | K17: Nov | L17: 1 | M17: 6.6 | N17: 1 | O17: 2.1
A18: Dec | B18: 30 | C18: 1.7 | D18: 9.2 | E18: 10 | F18: 1.6 | G18: 7 | K18: Dec | L18: 1.7 | M18: 9.2 | N18: 1.6 | O18: 3.1
K19: Annual | L19: =AVERAGE(L7:L18) -> 1.675 | M19: =MAX(M7:M18) -> 18.6 | N19: =AVERAGE(N7:N18) -> 1.616666667 | O19: =MAX(O7:O18) -> 7
J21: =+A6 -> 2022 | K21: mg/Nm3 | L21: Monthly 1/2 hourly mean | M21: Monthly 1/2 hourly maximum | N21: Monthly daily mean | O21: Monthly daily maximum
J22: A2 | K22: Jan
K23: Feb
K24: Mar
K25: Apr
K26: May
K27: Jun
K28: Jul
K29: Aug
K30: Sep
K31: Oct
K32: Nov
K33: Dec
K34: Annual | L34: =AVERAGE(L22:L33) ->  | M34: =MAX(M22:M33) -> 0 | N34: =AVERAGE(N22:N33) ->  | O34: =MAX(O22:O33) -> 0
J36: =+A6 -> 2022 | K36: mg/Nm3 | L36: Monthly 1/2 hourly mean | M36: Monthly 1/2 hourly maximum | N36: Monthly daily mean | O36: Monthly daily maximum
J37: A3 | K37: Jan
K38: Feb
K39: Mar
K40: Apr
K41: May
K42: Jun
K43: Jul
K44: Aug
K45: Sep
K46: Oct
K47: Nov
A48: Comments : | K48: Dec
K49: Annual | L49: =AVERAGE(L37:L48) ->  | M49: =MAX(M37:M48) -> 0 | N49: =AVERAGE(N37:N48) ->  | O49: =MAX(O37:O48) -> 0
J51: =+A6 -> 2022 | K51: mg/Nm3 | L51: Monthly 1/2 hourly mean | M51: Monthly 1/2 hourly maximum | N51: Monthly daily mean | O51: Monthly daily maximum
J52: A4 | K52: Jan
K53: Feb
K54: Mar
K55: Apr
K56: May
K57: Jun
K58: Jul
K59: Aug
K60: Sep
K61: Oct
K62: Nov
K63: Dec
K64: Annual | L64: =AVERAGE(L52:L63) ->  | M64: =MAX(M52:M63) -> 0 | N64: =AVERAGE(N52:N63) ->  | O64: =MAX(O52:O63) -> 0
J66: =+A6 -> 2022 | K66: mg/Nm3 | L66: Monthly 1/2 hourly mean | M66: Monthly 1/2 hourly maximum | N66: Monthly daily mean | O66: Monthly daily maximum
J67: A5 | K67: Jan
K68: Feb
K69: Mar
K70: Apr
K71: May
K72: Jun
K73: Jul
K74: Aug
K75: Sep
K76: Oct
K77: Nov
K78: Dec
K79: Annual | L79: =AVERAGE(L67:L78) ->  | M79: =MAX(M67:M78) -> 0 | N79: =AVERAGE(N67:N78) ->  | O79: =MAX(O67:O78) -> 0

Sheet NH3
A1: =+'Cover Page'!$B$29 -> Annual Performance Report 2022 | E1: =+'Cover Page'!$B$33 -> Peterborough Energy Recovery Facility
A3: Monitoring of Ammnonia emissions | D3: Whole Installation | G3: See Notes in Cell Q3 | J3: =+A3 -> Monitoring of Ammnonia emissions | N3: Per Combustion Line | Q3: Notes:
Q4: User to add logic to complete Whole installation, Table A5:G18. From the data in Per Combustion Line, Table J6:O79, subject to No. of lines installed
A5: mg/Nm3 | B5: 1/2 Hourly Reference Periods | E5: Daily Reference Periods
A6: =+'Cover Page'!C39 -> 2022 | B6: 1/2 hourly NH3 ELV | C6: Monthly 1/2 hourly mean | D6: Highest 1/2 hourly maximum | E6: Daily NH3 ELV | F6: Monthly daily mean | G6: Highest daily maximum | J6: =+A6 -> 2022 | K6: mg/Nm3 | L6: Monthly 1/2 hourly mean | M6: Monthly 1/2 hourly maximum | N6: Monthly daily mean | O6: Monthly daily maximum
A7: Jan | B7: 0 | C7: =L7 -> 0.4 | D7: =M7 -> 3.9 | E7: 10 | F7: =N7 -> 0.4 | G7: =O7 -> 1.3 | J7: A1 | K7: Jan | L7: 0.4 | M7: 3.9 | N7: 0.4 | O7: 1.3
A8: Feb | B8: =+B7 -> 0 | C8: =L8 -> 0.8 | D8: =M8 -> 11.1 | E8: =+E7 -> 10 | F8: =N8 -> 0.8 | G8: =O8 -> 1.8 | K8: Feb | L8: 0.8 | M8: 11.1 | N8: 0.8 | O8: 1.8
A9: Mar | B9: =+B8 -> 0 | C9: 2.6 | D9: 14 | E9: =+E8 -> 10 | F9: 2.6 | G9: 6.1 | K9: Mar | L9: 2.6 | M9: 14 | N9: 2.6 | O9: 6.1 | Q9: Whole Installation table A5:G18:
A10: Apr | B10: 0 | C10: 3.1 | D10: 16 | E10: 10 | F10: 3 | G10: 7.3 | K10: Apr | L10: 3.1 | M10: 16 | N10: 3 | O10: 7.3 | Q10: Mean: for 1/2 hourly and daily periods calculate mean of values across all operational combustion lines for the month
A11: May | B11: 0 | C11: 1.9 | D11: 10.6 | E11: 10 | F11: 1.9 | G11: 3.2 | K11: May | L11: 1.9 | M11: 10.6 | N11: 1.9 | O11: 3.2
A12: Jun | B12: 0 | C12: 1.9 | D12: 10.8 | E12: 10 | F12: 1.8 | G12: 2.6 | K12: Jun | L12: 1.9 | M12: 10.8 | N12: 1.8 | O12: 2.6
A13: Jul | B13: 0 | C13: 2.1 | D13: 14.6 | E13: 10 | F13: 2 | G13: 3.5 | K13: Jul | L13: 2.1 | M13: 14.6 | N13: 2 | O13: 3.5 | Q13: Maximum: for 1/2 hourly and daily periods use the highest value across all operational combustion lines for the month
A14: Aug | B14: 0 | C14: 2.5 | D14: 11.9 | E14: 10 | F14: 2.4 | G14: 5.7 | K14: Aug | L14: 2.5 | M14: 11.9 | N14: 2.4 | O14: 5.7
A15: Sep | B15: 0 | C15: 1.8 | D15: 15.6 | E15: 10 | F15: 1.8 | G15: 4.2 | K15: Sep | L15: 1.8 | M15: 15.6 | N15: 1.8 | O15: 4.2
A16: Oct | B16: 0 | C16: 2 | D16: 14.2 | E16: 10 | F16: 2 | G16: 5.1 | K16: Oct | L16: 2 | M16: 14.2 | N16: 2 | O16: 5.1
A17: Nov | B17: 0 | C17: 3.5 | D17: 20.5 | E17: 10 | F17: 3.5 | G17: 6.2 | K17: Nov | L17: 3.5 | M17: 20.5 | N17: 3.5 | O17: 6.2
A18: Dec | B18: 0 | C18: 4.5 | D18: 31.1 | E18: 10 | F18: 4.5 | G18: 9.1 | K18: Dec | L18: 4.5 | M18: 31.1 | N18: 4.5 | O18: 9.1
K19: Annual | L19: =AVERAGE(L7:L18) -> 2.258333333 | M19: =MAX(M7:M18) -> 31.1 | N19: =AVERAGE(N7:N18) -> 2.225 | O19: =MAX(O7:O18) -> 9.1
J21: =+A6 -> 2022 | K21: mg/Nm3 | L21: Monthly 1/2 hourly mean | M21: Monthly 1/2 hourly maximum | N21: Monthly daily mean | O21: Monthly daily maximum
J22: A2 | K22: Jan
K23: Feb
K24: Mar
K25: Apr
K26: May
K27: Jun
K28: Jul
K29: Aug
K30: Sep
K31: Oct
K32: Nov
K33: Dec
K34: Annual | L34: =AVERAGE(L22:L33) ->  | M34: =MAX(M22:M33) -> 0 | N34: =AVERAGE(N22:N33) ->  | O34: =MAX(O22:O33) -> 0
J36: =+A6 -> 2022 | K36: mg/Nm3 | L36: Monthly 1/2 hourly mean | M36: Monthly 1/2 hourly maximum | N36: Monthly daily mean | O36: Monthly daily maximum
J37: A3 | K37: Jan
K38: Feb
K39: Mar
K40: Apr
K41: May
K42: Jun
K43: Jul
K44: Aug
K45: Sep
K46: Oct
K47: Nov
A48: Comments : | K48: Dec
A49: An indicated ELV value of zero in the table above means that no ammonia limit is set in the permit. | K49: Annual | L49: =AVERAGE(L37:L48) ->  | M49: =MAX(M37:M48) -> 0 | N49: =AVERAGE(N37:N48) ->  | O49: =MAX(O37:O48) -> 0
J51: =+A6 -> 2022 | K51: mg/Nm3 | L51: Monthly 1/2 hourly mean | M51: Monthly 1/2 hourly maximum | N51: Monthly daily mean | O51: Monthly daily maximum
J52: A4 | K52: Jan
K53: Feb
K54: Mar
K55: Apr
K56: May
K57: Jun
K58: Jul
K59: Aug
K60: Sep
K61: Oct
K62: Nov
K63: Dec
K64: Annual | L64: =AVERAGE(L52:L63) ->  | M64: =MAX(M52:M63) -> 0 | N64: =AVERAGE(N52:N63) ->  | O64: =MAX(O52:O63) -> 0
J66: =+A6 -> 2022 | K66: mg/Nm3 | L66: Monthly 1/2 hourly mean | M66: Monthly 1/2 hourly maximum | N66: Monthly daily mean | O66: Monthly daily maximum
J67: A5 | K67: Jan
K68: Feb
K69: Mar
K70: Apr
K71: May
K72: Jun
K73: Jul
K74: Aug
K75: Sep
K76: Oct
K77: Nov
K78: Dec
K79: Annual | L79: =AVERAGE(L67:L78) ->  | M79: =MAX(M67:M78) -> 0 | N79: =AVERAGE(N67:N78) ->  | O79: =MAX(O67:O78) -> 0
